Workbook

Sheet samenvatting
A2: 2009-03-15 | B2: tijdstip | C2: genormaliseerd | D2: afstand | E2: snelheid | F2: versnelling | H2: rotatiesensorwaarde | K2: afstand
B3: s | C3: s | D3: cm | E3: m/s | F3: m/s2 | H3: ruw | I3: gecorr. | J3: wielrot | K3: cm
B4: 0.476 | C4: 0 | D4: 0 | E4: 0 | F4: 0 | H4: 3 | I4: 0 | J4: 0 | K4: 0
B5: 1.485185185 | C5: 1.009185185 | D5: 25 | E5: 0.2477246036 | F5: 0.245469917 | H5: 32 | I5: 29 | J5: 1.8125 | K5: 24.48478774
B6: 2.027027027 | C6: 1.551027027 | D6: 50 | E6: 0.9227784962 | F6: 0.436683931 | H6: 60 | I6: 57 | J6: 3.5625 | K6: 48.12527246
B7: 2.464375 | C7: 1.988375 | D7: 75 | E7: 1.714881619 | F7: 0.6428353244 | H7: 89 | I7: 86 | J7: 5.375 | K7: 72.61006021
B8: 2.866153846 | C8: 2.390153846 | D8: 100 | E8: 2.488931435 | F8: 0.7723754324 | H8: 118 | I8: 115 | J8: 7.1875 | K8: 97.09484795
B10: tijdstip | C10: genormaliseerd | D10: afstand | E10: snelheid | F10: versnelling | G10: 1 | H10: rotatiesensorwaarde | K10: afstand
A11: 2009-03-22 | B11: s | C11: s | D11: cm | E11: m/s | F11: m/s2 | H11: ruw | I11: gecorr. | J11: wielrot | K11: cm
B12: 0.76 | C12: 0 | D12: 0 | E12: 0 | F12: 0 | H12: 1 | I12: 0 | J12: 0 | K12: 0
B13: 2.077777778 | C13: 1.317777778 | D13: 25 | E13: 0.1897133221 | F13: 0.1439645783 | H13: 31 | I13: 30 | J13: 1.875 | K13: 25.32909077
B14: 2.667 | C14: 1.907 | D14: 50 | E14: 0.8485762776 | F14: 0.3694869949 | H14: 60 | I14: 59 | J14: 3.6875 | K14: 49.81387851
B15: 3.1248 | C15: 2.3648 | D15: 75 | E15: 1.638269987 | F15: 0.5365286671 | H15: 90 | I15: 89 | J15: 5.5625 | K15: 75.14296928
B16: 3.527692308 | C16: 2.767692308 | D16: 100 | E16: 2.482052849 | F16: 0.7029409216 | H16: 119 | I16: 118 | J16: 7.375 | K16: 99.62775703
B18: tijdstip | C18: genormaliseerd | D18: afstand | E18: snelheid | F18: versnelling | G18: 2 | H18: rotatiesensorwaarde | K18: afstand
B19: s | C19: s | D19: cm | E19: m/s | F19: m/s2 | H19: ruw | I19: gecorr. | J19: wielrot | K19: cm
B20: 0.4675 | C20: 0 | D20: 0 | E20: 0 | F20: 0 | H20: 1 | I20: 0 | J20: 0 | K20: 0
B21: 1.74 | C21: 1.2725 | D21: 25 | E21: 0.1964636542 | F21: 0.1543918697 | H21: 32 | I21: 31 | J21: 1.9375 | K21: 26.1733938
B22: 2.34037037 | C22: 1.87287037 | D22: 50 | E22: 0.8328192474 | F22: 0.3622393671 | H22: 60 | I22: 59 | J22: 3.6875 | K22: 49.81387851
B23: 2.821428571 | C23: 2.353928571 | D23: 75 | E23: 1.559062912 | F23: 0.508436645 | H23: 90 | I23: 89 | J23: 5.5625 | K23: 75.14296928
B24: 3.247142857 | C24: 2.779642857 | D24: 100 | E24: 2.348993289 | F24: 0.6621558014 | H24: 120 | I24: 119 | J24: 7.4375 | K24: 100.4720601
B26: tijdstip | C26: genormaliseerd | D26: afstand | E26: snelheid | F26: versnelling | G26: 3 | H26: rotatiesensorwaarde | K26: afstand
B27: s | C27: s | D27: cm | E27: m/s | F27: m/s2 | H27: ruw | I27: gecorr. | J27: wielrot | K27: cm
B28: 0.668 | C28: 0 | D28: 0 | E28: 0 | F28: 0 | H28: 1 | I28: 0 | J28: 0 | K28: 0
B29: 1.880434783 | C29: 1.212434783 | D29: 25 | E29: 0.2061966578 | F29: 0.1700682468 | H29: 30 | I29: 29 | J29: 1.8125 | K29: 24.48478774
B30: 2.478571429 | C30: 1.810571429 | D30: 50 | E30: 0.8359293873 | F30: 0.3677629781 | H30: 60 | I30: 59 | J30: 3.6875 | K30: 49.81387851
B31: 2.956315789 | C31: 2.288315789 | D31: 75 | E31: 1.569877243 | F31: 0.5253270856 | H31: 90 | I31: 89 | J31: 5.5625 | K31: 75.14296928
B32: 3.36875 | C32: 2.70075 | D32: 100 | E32: 2.424629127 | F32: 0.7032498535 | H32: 119 | I32: 118 | J32: 7.375 | K32: 99.62775703
A34: 2009-03-29 | B34: tijdstip | C34: genormaliseerd | D34: afstand | E34: snelheid | F34: versnelling | G34: 1 | H34: rotatiesensorwaarde | K34: afstand
B35: s | C35: s | D35: cm | E35: m/s | F35: m/s2 | H35: ruw | I35: gecorr. | J35: wielrot | K35: cm
B36: 0.42 | C36: 0 | D36: 0 | E36: 0 | F36: 0 | H36: 1 | I36: 0 | J36: 0 | K36: 0
B37: 1.057111111 | C37: 0.6371111111 | D37: 25 | E37: 0.392396233 | F37: 0.6158992147 | H37: 31 | I37: 30 | J37: 1.875 | K37: 25.32909077
B38: 1.35372093 | C38: 0.9337209302 | D38: 50 | E38: 1.685716277 | F38: 1.145756754 | H38: 59 | I38: 58 | J38: 3.625 | K38: 48.96957549
B39: 1.606153846 | C39: 1.186153846 | D39: 75 | E39: 2.971086387 | F39: 1.538864152 | H39: 90 | I39: 89 | J39: 5.5625 | K39: 75.14296928
B40: 1.835 | C40: 1.415 | D40: 100 | E40: 4.369747899 | F40: 2.000624556 | H40: 123 | I40: 122 | J40: 7.625 | K40: 103.0049691
B42: tijdstip | C42: genormaliseerd | D42: afstand | E42: snelheid | F42: versnelling | G42: 5 | H42: rotatiesensorwaarde | K42: afstand
B43: s | C43: s | D43: cm | E43: m/s | F43: m/s2 | H43: ruw | I43: gecorr. | J43: wielrot | K43: cm
B44: 1.24 | C44: 0 | D44: 0 | E44: 0 | F44: 0 | H44: 1 | I44: 0 | J44: 0 | K44: 0
B45: 1.855853659 | C45: 0.6158536585 | D45: 25 | E45: 0.4059405941 | F45: 0.6591510636 | H45: 30 | I45: 29 | J45: 1.8125 | K45: 24.48478774
B46: 2.153333333 | C46: 0.9133333333 | D46: 50 | E46: 1.6807871 | F46: 1.118579602 | H46: 59 | I46: 58 | J46: 3.625 | K46: 48.96957549
B47: 2.406956522 | C47: 1.166956522 | D47: 75 | E47: 2.957142857 | F47: 1.575519928 | H47: 89 | I47: 88 | J47: 5.5 | K47: 74.29866626
B48: 2.63 | C48: 1.39 | D48: 100 | E48: 4.483430799 | F48: 2.09202221 | H48: 122 | I48: 121 | J48: 7.5625 | K48: 102.1606661
B51: afstand | C51: snelheid | D51: snelheid | E51: snelheid | F51: snelheid gem. | H51: afstand | I51: snelheid | J51: snelheid | K51: snelheid gem.
B52: cm | C52: m/s | D52: m/s | E52: m/s | F52: m/s | H52: cm | I52: m/s | J52: m/s | K52: m/s
B53: 0 | C53: 0 | D53: 0 | E53: 0 | F53: =AVERAGE(C53:E53) -> 0 | H53: 0 | I53: 0 | J53: 0 | K53: =AVERAGE(I53:J53) -> 0
B54: 25 | C54: 0.1897133221 | D54: 0.1964636542 | E54: 0.2061966578 | F54: =AVERAGE(C54:E54) -> 0.197457878 | H54: 25 | I54: 0.392396233 | J54: 0.4059405941 | K54: =AVERAGE(I54:J54) -> 0.3991684135
B55: 50 | C55: 0.8485762776 | D55: 0.8328192474 | E55: 0.8359293873 | F55: 0.8391083041 | H55: 50 | I55: 1.685716277 | J55: 1.6807871 | K55: 1.683251689
B56: 75 | C56: 1.638269987 | D56: 1.559062912 | E56: 1.569877243 | F56: 1.589070047 | H56: 75 | I56: 2.971086387 | J56: 2.957142857 | K56: 2.964114622
B57: 100 | C57: 2.482052849 | D57: 2.348993289 | E57: 2.424629127 | F57: 2.418558422 | H57: 100 | I57: 4.369747899 | J57: 4.483430799 | K57: 4.426589349
B59: afstand | C59: versnelling | D59: versnelling | E59: versnelling | F59: versnelling gem | H59: afstand | I59: versnelling | J59: versnelling | K59: versnelling gem
B60: cm | C60: m/s2 | D60: m/s2 | E60: m/s2 | F60: m/s2 | H60: cm | I60: m/s2 | J60: m/s2 | K60: m/s2
B61: 0 | C61: 0 | D61: 0 | E61: 0 | F61: =AVERAGE(C61:E61) -> 0 | H61: 0 | I61: 0 | J61: 0 | K61: =AVERAGE(I61:J61) -> 0
B62: 25 | C62: 0.1439645783 | D62: 0.1543918697 | E62: 0.1700682468 | F62: 0.1561415649 | H62: 25 | I62: 0.6158992147 | J62: 0.6591510636 | K62: 0.6375251391
B63: 50 | C63: 0.3694869949 | D63: 0.3622393671 | E63: 0.3677629781 | F63: 0.3664964467 | H63: 50 | I63: 1.145756754 | J63: 1.118579602 | K63: 1.132168178
B64: 75 | C64: 0.5365286671 | D64: 0.508436645 | E64: 0.5253270856 | F64: 0.5234307992 | H64: 75 | I64: 1.538864152 | J64: 1.575519928 | K64: 1.55719204
B65: 100 | C65: 0.7029409216 | D65: 0.6621558014 | E65: 0.7032498535 | F65: 0.6894488588 | H65: 100 | I65: 2.000624556 | J65: 2.09202221 | K65: 2.046323383
D68: Rotatiesensor waardes | F68: =K8 -> 97.09484795 | G68: cm | I68: Column1
F69: =K16 -> 99.62775703 | G69: cm
F70: =K24 -> 100.4720601 | G70: cm | I70: Mean | J70: 100.3313429
F71: =K32 -> 99.62775703 | G71: cm | I71: Standard Error | J71: 0.8559491348
F72: =K40 -> 103.0049691 | G72: cm | I72: Median | J72: 100.0499085
F73: =K48 -> 102.1606661 | G73: cm | I73: Mode | J73: 99.62775703
D74: gemiddeld | F74: =AVERAGE(F68:F73) -> 100.3313429 | G74: cm | I74: Standard Deviation | J74: 2.096638626
D75: standaard deviatie | F75: =STDEV(F68:F74) -> 1.913960451 | G75: cm | I75: Sample Variance | J75: 4.395893528
E76: n | F76: =COUNT(F68:F73) -> 6 | I76: Kurtosis | J76: -0.0008765522279
E77: 95% BI | F77: =1.96*F75/(SQRT(F76)) -> 1.531487321 | G77: cm | I77: Skewness | J77: -0.3047411278
I78: Range | J78: 5.91012118
I79: Minimum | J79: 97.09484795
I80: Maximum | J80: 103.0049691
I81: Sum | J81: 601.9880573
I82: Count | J82: 6
I83: Largest(1) | J83: 103.0049691
I84: Smallest(1) | J84: 97.09484795
I85: Confidence Level(95.0%) | J85: 2.200287297

Sheet rawdata
A1: Variable 0 | B1: 9
A2: Sensor 1 | B2: 55
A3: Sensor 2 | B3: 0
A4: Variable 0 | B4: 11
A5: Sensor 1 | B5: 55
A6: Sensor 2 | B6: 0
A7: Variable 0 | B7: 12
A8: Sensor 1 | B8: 55
A9: Sensor 2 | B9: 0
A10: Variable 0 | B10: 14
A11: Sensor 1 | B11: 55
A12: Sensor 2 | B12: 0
A13: Variable 0 | B13: 16
A14: Sensor 1 | B14: 55
A15: Sensor 2 | B15: 0
A16: Variable 0 | B16: 18
A17: Sensor 1 | B17: 55
A18: Sensor 2 | B18: 0
A19: Variable 0 | B19: 20
A20: Sensor 1 | B20: 55
A21: Sensor 2 | B21: 0
A22: Variable 0 | B22: 22
A23: Sensor 1 | B23: 55
A24: Sensor 2 | B24: 0
A25: Variable 0 | B25: 23
A26: Sensor 1 | B26: 55
A27: Sensor 2 | B27: 0
A28: Variable 0 | B28: 25
A29: Sensor 1 | B29: 55
A30: Sensor 2 | B30: 0
A31: Variable 0 | B31: 27
A32: Sensor 1 | B32: 55
A33: Sensor 2 | B33: 0
A34: Variable 0 | B34: 28
A35: Sensor 1 | B35: 55
A36: Sensor 2 | B36: 0
A37: Variable 0 | B37: 30
A38: Sensor 1 | B38: 55
A39: Sensor 2 | B39: 0
A40: Variable 0 | B40: 32
A41: Sensor 1 | B41: 55
A42: Sensor 2 | B42: 0
A43: Variable 0 | B43: 34
A44: Sensor 1 | B44: 55
A45: Sensor 2 | B45: 0
A46: Variable 0 | B46: 36
A47: Sensor 1 | B47: 55
A48: Sensor 2 | B48: 0
A49: Variable 0 | B49: 37
A50: Sensor 1 | B50: 55
A51: Sensor 2 | B51: 0
A52: Variable 0 | B52: 39
A53: Sensor 1 | B53: 55
A54: Sensor 2 | B54: 0
A55: Variable 0 | B55: 41
A56: Sensor 1 | B56: 55
A57: Sensor 2 | B57: 0
A58: Variable 0 | B58: 43
A59: Sensor 1 | B59: 55
A60: Sensor 2 | B60: 0
A61: Variable 0 | B61: 45
A62: Sensor 1 | B62: 55
A63: Sensor 2 | B63: 0
A64: Variable 0 | B64: 46
A65: Sensor 1 | B65: 55
A66: Sensor 2 | B66: 0
A67: Variable 0 | B67: 48
A68: Sensor 1 | B68: 55
A69: Sensor 2 | B69: 0
A70: Variable 0 | B70: 50
A71: Sensor 1 | B71: 55
A72: Sensor 2 | B72: 0
A73: Variable 0 | B73: 52
A74: Sensor 1 | B74: 55
A75: Sensor 2 | B75: 0
A76: Variable 0 | B76: 53
A77: Sensor 1 | B77: 55
A78: Sensor 2 | B78: 0
A79: Variable 0 | B79: 55
A80: Sensor 1 | B80: 55
A81: Sensor 2 | B81: 0
A82: Variable 0 | B82: 57
A83: Sensor 1 | B83: 55
A84: Sensor 2 | B84: 0
A85: Variable 0 | B85: 59
A86: Sensor 1 | B86: 55
A87: Sensor 2 | B87: 0
A88: Variable 0 | B88: 61
A89: Sensor 1 | B89: 55
A90: Sensor 2 | B90: 0
A91: Variable 0 | B91: 62
A92: Sensor 1 | B92: 55
A93: Sensor 2 | B93: 0
A94: Variable 0 | B94: 64
A95: Sensor 1 | B95: 55
A96: Sensor 2 | B96: 0
A97: Variable 0 | B97: 66
A98: Sensor 1 | B98: 55
A99: Sensor 2 | B99: 0
A100: Variable 0 | B100: 68
A101: Sensor 1 | B101: 55
A102: Sensor 2 | B102: 0
A103: Variable 0 | B103: 70
A104: Sensor 1 | B104: 55
A105: Sensor 2 | B105: 0
A106: Variable 0 | B106: 71
A107: Sensor 1 | B107: 55
A108: Sensor 2 | B108: 0
A109: Variable 0 | B109: 73
A110: Sensor 1 | B110: 55
A111: Sensor 2 | B111: 0
A112: Variable 0 | B112: 75
A113: Sensor 1 | B113: 55
A114: Sensor 2 | B114: 0
A115: Variable 0 | B115: 77
A116: Sensor 1 | B116: 55
A117: Sensor 2 | B117: 0
A118: Variable 0 | B118: 78
A119: Sensor 1 | B119: 55
A120: Sensor 2 | B120: 0
A121: Variable 0 | B121: 80
A122: Sensor 1 | B122: 55
A123: Sensor 2 | B123: 0
A124: Variable 0 | B124: 82
A125: Sensor 1 | B125: 55
A126: Sensor 2 | B126: 0
A127: Variable 0 | B127: 84
A128: Sensor 1 | B128: 55
A129: Sensor 2 | B129: 0
A130: Variable 0 | B130: 85
A131: Sensor 1 | B131: 55
A132: Sensor 2 | B132: 0
A133: Variable 0 | B133: 87
A134: Sensor 1 | B134: 55
A135: Sensor 2 | B135: 0
A136: Variable 0 | B136: 89
A137: Sensor 1 | B137: 55
A138: Sensor 2 | B138: 0
A139: Variable 0 | B139: 91
A140: Sensor 1 | B140: 55
A141: Sensor 2 | B141: 0
A142: Variable 0 | B142: 92
A143: Sensor 1 | B143: 55
A144: Sensor 2 | B144: 0
A145: Variable 0 | B145: 95
A146: Sensor 1 | B146: 55
A147: Sensor 2 | B147: 0
A148: Variable 0 | B148: 96
A149: Sensor 1 | B149: 55
A150: Sensor 2 | B150: 0
A151: Variable 0 | B151: 98
A152: Sensor 1 | B152: 55
A153: Sensor 2 | B153: 0
A154: Variable 0 | B154: 100
A155: Sensor 1 | B155: 55
A156: Sensor 2 | B156: 0
A157: Variable 0 | B157: 102
A158: Sensor 1 | B158: 55
A159: Sensor 2 | B159: 0
A160: Variable 0 | B160: 103
A161: Sensor 1 | B161: 55
A162: Sensor 2 | B162: 0
A163: Variable 0 | B163: 105
A164: Sensor 1 | B164: 55
A165: Sensor 2 | B165: 0
A166: Variable 0 | B166: 107
A167: Sensor 1 | B167: 55
A168: Sensor 2 | B168: 0
A169: Variable 0 | B169: 109
A170: Sensor 1 | B170: 55
A171: Sensor 2 | B171: 0
A172: Variable 0 | B172: 110
A173: Sensor 1 | B173: 55
A174: Sensor 2 | B174: 0
A175: Variable 0 | B175: 112
A176: Sensor 1 | B176: 55
A177: Sensor 2 | B177: 0
A178: Variable 0 | B178: 114
A179: Sensor 1 | B179: 54
A180: Sensor 2 | B180: 0
A181: Variable 0 | B181: 116
A182: Sensor 1 | B182: 54
A183: Sensor 2 | B183: 0
A184: Variable 0 | B184: 117
A185: Sensor 1 | B185: 55
A186: Sensor 2 | B186: 0
A187: Variable 0 | B187: 119
A188: Sensor 1 | B188: 55
A189: Sensor 2 | B189: 0
A190: Variable 0 | B190: 121
A191: Sensor 1 | B191: 52
A192: Sensor 2 | B192: 1
A193: Variable 0 | B193: 123
A194: Sensor 1 | B194: 44
A195: Sensor 2 | B195: 1
A196: Variable 0 | B196: 125
A197: Sensor 1 | B197: 40
A198: Sensor 2 | B198: 1
A199: Variable 0 | B199: 126
A200: Sensor 1 | B200: 40
... 800 more rows

Sheet data
A1: Tijd (s) | B1: Licht | C1: Rotatie
A2: 0.09 | B2: 55 | C2: 0
A3: 0.11 | B3: 55 | C3: 0
A4: 0.12 | B4: 55 | C4: 0
A5: 0.14 | B5: 55 | C5: 0
A6: 0.16 | B6: 55 | C6: 0
A7: 0.18 | B7: 55 | C7: 0
A8: 0.2 | B8: 55 | C8: 0
A9: 0.22 | B9: 55 | C9: 0
A10: 0.23 | B10: 55 | C10: 0
A11: 0.25 | B11: 55 | C11: 0
A12: 0.27 | B12: 55 | C12: 0
A13: 0.28 | B13: 55 | C13: 0
A14: 0.3 | B14: 55 | C14: 0
A15: 0.32 | B15: 55 | C15: 0
A16: 0.34 | B16: 55 | C16: 0
A17: 0.36 | B17: 55 | C17: 0
A18: 0.37 | B18: 55 | C18: 0
A19: 0.39 | B19: 55 | C19: 0
A20: 0.41 | B20: 55 | C20: 0
A21: 0.43 | B21: 55 | C21: 0
A22: 0.45 | B22: 55 | C22: 0
A23: 0.46 | B23: 55 | C23: 0
A24: 0.48 | B24: 55 | C24: 0
A25: 0.5 | B25: 55 | C25: 0
A26: 0.52 | B26: 55 | C26: 0
A27: 0.53 | B27: 55 | C27: 0
A28: 0.55 | B28: 55 | C28: 0
A29: 0.57 | B29: 55 | C29: 0
A30: 0.59 | B30: 55 | C30: 0
A31: 0.61 | B31: 55 | C31: 0
A32: 0.62 | B32: 55 | C32: 0
A33: 0.64 | B33: 55 | C33: 0
A34: 0.66 | B34: 55 | C34: 0
A35: 0.68 | B35: 55 | C35: 0
A36: 0.7 | B36: 55 | C36: 0
A37: 0.71 | B37: 55 | C37: 0
A38: 0.73 | B38: 55 | C38: 0
A39: 0.75 | B39: 55 | C39: 0
A40: 0.77 | B40: 55 | C40: 0
A41: 0.78 | B41: 55 | C41: 0
A42: 0.8 | B42: 55 | C42: 0
A43: 0.82 | B43: 55 | C43: 0
A44: 0.84 | B44: 55 | C44: 0
A45: 0.85 | B45: 55 | C45: 0
A46: 0.87 | B46: 55 | C46: 0
A47: 0.89 | B47: 55 | C47: 0
A48: 0.91 | B48: 55 | C48: 0
A49: 0.92 | B49: 55 | C49: 0
A50: 0.95 | B50: 55 | C50: 0
A51: 0.96 | B51: 55 | C51: 0
A52: 0.98 | B52: 55 | C52: 0
A53: 1 | B53: 55 | C53: 0
A54: 1.02 | B54: 55 | C54: 0
A55: 1.03 | B55: 55 | C55: 0
A56: 1.05 | B56: 55 | C56: 0
A57: 1.07 | B57: 55 | C57: 0
A58: 1.09 | B58: 55 | C58: 0
A59: 1.1 | B59: 55 | C59: 0
A60: 1.12 | B60: 55 | C60: 0
A61: 1.14 | B61: 54 | C61: 0
A62: 1.16 | B62: 54 | C62: 0
A63: 1.17 | B63: 55 | C63: 0
A64: 1.19 | B64: 55 | C64: 0
A65: 1.21 | B65: 52 | C65: 1
A66: 1.23 | B66: 44 | C66: 1
A67: 1.25 | B67: 40 | C67: 1
A68: 1.26 | B68: 40 | C68: 2
A69: 1.28 | B69: 39 | C69: 2
A70: 1.3 | B70: 42 | C70: 2
A71: 1.32 | B71: 53 | C71: 3
A72: 1.34 | B72: 55 | C72: 3
A73: 1.35 | B73: 55 | C73: 4
A74: 1.37 | B74: 55 | C74: 4
A75: 1.39 | B75: 55 | C75: 5
A76: 1.41 | B76: 55 | C76: 5
A77: 1.42 | B77: 54 | C77: 6
A78: 1.44 | B78: 54 | C78: 6
A79: 1.46 | B79: 54 | C79: 7
A80: 1.48 | B80: 55 | C80: 8
A81: 1.5 | B81: 55 | C81: 8
A82: 1.51 | B82: 55 | C82: 9
A83: 1.53 | B83: 54 | C83: 10
A84: 1.55 | B84: 54 | C84: 11
A85: 1.57 | B85: 55 | C85: 12
A86: 1.58 | B86: 55 | C86: 13
A87: 1.6 | B87: 54 | C87: 14
A88: 1.62 | B88: 54 | C88: 15
A89: 1.64 | B89: 54 | C89: 16
A90: 1.65 | B90: 55 | C90: 17
A91: 1.67 | B91: 54 | C91: 18
A92: 1.69 | B92: 54 | C92: 19
A93: 1.71 | B93: 55 | C93: 20
A94: 1.73 | B94: 54 | C94: 21
A95: 1.75 | B95: 54 | C95: 22
A96: 1.76 | B96: 55 | C96: 24
A97: 1.78 | B97: 54 | C97: 25
A98: 1.8 | B98: 53 | C98: 26
A99: 1.82 | B99: 54 | C99: 28
A100: 1.83 | B100: 55 | C100: 29
A101: 1.85 | B101: 53 | C101: 30
A102: 1.87 | B102: 39 | C102: 32
A103: 1.89 | B103: 54 | C103: 33
A104: 1.9 | B104: 54 | C104: 35
A105: 1.92 | B105: 55 | C105: 36
A106: 1.94 | B106: 54 | C106: 38
A107: 1.96 | B107: 54 | C107: 39
A108: 1.97 | B108: 54 | C108: 41
A109: 1.99 | B109: 54 | C109: 43
A110: 2.01 | B110: 55 | C110: 44
A111: 2.03 | B111: 53 | C111: 46
A112: 2.05 | B112: 54 | C112: 48
A113: 2.07 | B113: 54 | C113: 49
A114: 2.08 | B114: 53 | C114: 51
A115: 2.1 | B115: 54 | C115: 53
A116: 2.12 | B116: 53 | C116: 55
A117: 2.14 | B117: 54 | C117: 56
A118: 2.15 | B118: 53 | C118: 59
A119: 2.17 | B119: 50 | C119: 60
A120: 2.19 | B120: 51 | C120: 63
A121: 2.21 | B121: 53 | C121: 64
A122: 2.22 | B122: 53 | C122: 66
A123: 2.24 | B123: 54 | C123: 69
A124: 2.26 | B124: 53 | C124: 71
A125: 2.28 | B125: 53 | C125: 73
A126: 2.3 | B126: 53 | C126: 75
A127: 2.31 | B127: 53 | C127: 78
A128: 2.33 | B128: 54 | C128: 80
A129: 2.35 | B129: 53 | C129: 82
A130: 2.37 | B130: 53 | C130: 84
A131: 2.38 | B131: 52 | C131: 86
A132: 2.4 | B132: 53 | C132: 89
A133: 2.42 | B133: 38 | C133: 91
A134: 2.44 | B134: 53 | C134: 94
A135: 2.46 | B135: 53 | C135: 96
A136: 2.47 | B136: 52 | C136: 98
A137: 2.49 | B137: 53 | C137: 101
A138: 2.51 | B138: 52 | C138: 104
A139: 2.53 | B139: 51 | C139: 106
A140: 2.55 | B140: 53 | C140: 109
A141: 2.56 | B141: 52 | C141: 112
A142: 2.58 | B142: 51 | C142: 114
A143: 2.6 | B143: 53 | C143: 117
A144: 2.62 | B144: 52 | C144: 119
A145: 2.63 | B145: 47 | C145: 122
A146: 2.65 | B146: 46 | C146: 125
A147: 2.67 | B147: 37 | C147: 128
A148: 2.69 | B148: 36 | C148: 130
A149: 2.71 | B149: 39 | C149: 132
A150: 2.72 | B150: 40 | C150: 135
A151: 2.74 | B151: 39 | C151: 137
A152: 2.76 | B152: 40 | C152: 137
A153: 2.78 | B153: 40 | C153: 136
A154: 2.8 | B154: 40 | C154: 136
A155: 2.81 | B155: 40 | C155: 136
A156: 2.83 | B156: 39 | C156: 136
A157: 2.85 | B157: 39 | C157: 135
A158: 2.87 | B158: 39 | C158: 135
A159: 2.88 | B159: 39 | C159: 135
A160: 2.9 | B160: 39 | C160: 135
A161: 2.92 | B161: 38 | C161: 135
A162: 2.94 | B162: 38 | C162: 136
A163: 2.95 | B163: 38 | C163: 136
A164: 2.97 | B164: 38 | C164: 136
A165: 2.99 | B165: 37 | C165: 136
A166: 3.01 | B166: 37 | C166: 135
A167: 3.03 | B167: 37 | C167: 135
A168: 3.04 | B168: 38 | C168: 135
A169: 3.06 | B169: 39 | C169: 135
A170: 3.08 | B170: 38 | C170: 135
A171: 3.1 | B171: 38 | C171: 135
A172: 3.12 | B172: 38 | C172: 135
A173: 3.13 | B173: 38 | C173: 135
A174: 3.15 | B174: 38 | C174: 135
A175: 3.17 | B175: 38 | C175: 134
A176: 3.19 | B176: 38 | C176: 134
A177: 3.2 | B177: 39 | C177: 134
A178: 3.22 | B178: 38 | C178: 134
A179: 3.24 | B179: 38 | C179: 134
A180: 3.26 | B180: 38 | C180: 134
A181: 3.27 | B181: 38 | C181: 134
A182: 3.29 | B182: 39 | C182: 134
A183: 3.31 | B183: 38 | C183: 134
A184: 3.33 | B184: 38 | C184: 134
A185: 3.35 | B185: 38 | C185: 134
A186: 3.36 | B186: 38 | C186: 134
A187: 3.38 | B187: 39 | C187: 134
A188: 3.4 | B188: 39 | C188: 134
A189: 3.42 | B189: 38 | C189: 134
A190: 3.44 | B190: 39 | C190: 134
A191: 3.45 | B191: 39 | C191: 134
A192: 3.47 | B192: 38 | C192: 134
A193: 3.49 | B193: 38 | C193: 134
A194: 3.51 | B194: 38 | C194: 134
A195: 3.52 | B195: 38 | C195: 134
A196: 3.54 | B196: 39 | C196: 134
A197: 3.56 | B197: 38 | C197: 134
A198: 3.58 | B198: 38 | C198: 134
A199: 3.6 | B199: 38 | C199: 134
A200: 3.61 | B200: 39 | C200: 134
... 135 more rows

Sheet 290320092024_2
A1: s | B1: RAW | G1: tijdstip | H1: genormaliseerd | I1: afstand | J1: snelheid | K1: versnelling | M1: rotatiesensorwaarde | P1: afstand
A2: Tijd | B2: Licht | C2: Rotatie | D2: 1ste der | E2: 2de der | G2: s | H2: s | I2: cm | J2: m/s | K2: m/s2 | M2: ruw | N2: gecorr. | O2: wielrot | P2: cm
A3: 0.09 | B3: 55 | C3: 0 | G3: =I17 -> 1.24 | H3: =G3-$G$3 -> 0 | I3: 0 | J3: 0 | K3: 0 | M3: =VLOOKUP(G3,$A$3:$C$362,3) -> 1 | N3: =M3-$M$3 -> 0 | O3: =N3/16 -> 0 | P3: =O3*$O$8 -> 0
A4: 0.11 | B4: 55 | C4: 0 | D4: =B4-B3 -> 0 | G4: =I28 -> 1.855853659 | H4: =G4-$G$3 -> 0.6158536585 | I4: 25 | J4: =I4/(G4-G3)/100 -> 0.4059405941 | K4: =(J4-K3)/H4 -> 0.6591510636 | M4: =VLOOKUP(G4,$A$3:$C$362,3) -> 30 | N4: =M4-$M$3 -> 29 | O4: =N4/16 -> 1.8125 | P4: =O4*$O$8 -> 24.48478774
A5: 0.12 | B5: 55 | C5: 0 | D5: =B5-B4 -> 0 | E5: =D5-D4 -> 0 | G5: =I38 -> 2.153333333 | H5: =G5-$G$3 -> 0.9133333333 | I5: 50 | J5: =I5/(G5-G4)/100 -> 1.6807871 | K5: =(J5-K4)/H5 -> 1.118579602 | M5: 59 | N5: 58 | O5: 3.625 | P5: 48.96957549
A6: 0.14 | B6: 55 | C6: 0 | D6: 0 | E6: =D6-D5 -> 0 | G6: =I48 -> 2.406956522 | H6: =G6-$G$3 -> 1.166956522 | I6: 75 | J6: =I6/(G6-G5)/100 -> 2.957142857 | K6: =(J6-K5)/H6 -> 1.575519928 | M6: 89 | N6: 88 | O6: 5.5 | P6: 74.29866626
A7: 0.16 | B7: 55 | C7: 0 | D7: 0 | E7: 0 | G7: =I58 -> 2.63 | H7: =G7-$G$3 -> 1.39 | I7: 100 | J7: =I7/(G7-G6)/100 -> 4.483430799 | K7: =(J7-K6)/H7 -> 2.09202221 | M7: 122 | N7: 121 | O7: 7.5625 | P7: 102.1606661
A8: 0.18 | B8: 55 | C8: 0 | D8: 0 | E8: 0 | M8: Diameter = | O8: =2*PI()*4.3/2 -> 13.50884841
A9: 0.2 | B9: 55 | C9: 0 | D9: 0 | E9: 0 | G9: tijd | H9: waarde | I9: 1st der | J9: 2nd der
A10: 0.22 | B10: 55 | C10: 0 | D10: 0 | E10: 0 | G10: 1.21 | H10: 52 | L10: 1.19 | M10: 55 | N10: 1 | O10: 0 | P10: 0
A11: 0.23 | B11: 55 | C11: 0 | D11: 0 | E11: 0 | I11: =H12-H10 -> -8 | L11: 1.21 | M11: 52 | N11: 1 | O11: -1 | P11: -1
A12: 0.25 | B12: 55 | C12: 0 | D12: 0 | E12: 0 | G12: 1.23 | H12: 44 | J12: =I13-I11 -> 4 | L12: 1.23 | M12: 44 | N12: 1 | O12: 1 | P12: 2
A13: 0.27 | B13: 55 | C13: 0 | D13: 0 | E13: 0 | I13: =H14-H12 -> -4 | L13: 1.25 | M13: 40 | N13: 1 | O13: -2 | P13: -3
A14: 0.28 | B14: 55 | C14: 0 | D14: 0 | E14: 0 | G14: 1.25 | H14: 40 | J14: =I15-I13 -> 4 | L14: 1.26 | M14: 40 | N14: 1 | O14: -5 | P14: -3
A15: 0.3 | B15: 55 | C15: 0 | D15: 0 | E15: 0 | I15: =H16-H14 -> 0 | L15: 1.28 | M15: 39 | N15: 2 | O15: -8 | P15: -3
A16: 0.32 | B16: 55 | C16: 0 | D16: 0 | E16: 0 | G16: 1.26 | H16: 40 | N16: 2 | O16: -3 | P16: 0
A17: 0.34 | B17: 55 | C17: 0 | D17: 0 | E17: 0 | I17: =G12+(G12-G10)*ABS(J12)/(ABS(J12)+ABS(J14)) -> 1.24 | J17: s | N17: 2 | O17: -1 | P17: 2
A18: 0.36 | B18: 55 | C18: 0 | D18: 0 | E18: 0 | N18: 2 | O18: 0 | P18: 1
A19: 0.37 | B19: 55 | C19: 0 | D19: 0 | E19: 0
A20: 0.39 | B20: 55 | C20: 0 | D20: 0 | E20: 0 | G20: tijd | H20: waarde | I20: 1st der | J20: 2nd der | L20: 1.83 | M20: 55 | N20: 28 | O20: 0 | P20: 0
A21: 0.41 | B21: 55 | C21: 0 | D21: 0 | E21: 0 | G21: 1.83 | H21: 55 | L21: 1.85 | M21: 53 | N21: 29 | O21: 1 | P21: 1
A22: 0.43 | B22: 55 | C22: 0 | D22: 0 | E22: 0 | I22: =H23-H21 -> -2 | L22: 1.87 | M22: 39 | N22: 30 | O22: -2 | P22: -3
A23: 0.45 | B23: 55 | C23: 0 | D23: 0 | E23: 0 | G23: 1.85 | H23: 53 | J23: =I24-I22 -> -12 | L23: 1.89 | M23: 54 | N23: 32 | O23: -7 | P23: -5
A24: 0.46 | B24: 55 | C24: 0 | D24: 0 | E24: 0 | I24: =H25-H23 -> -14 | L24: 1.9 | M24: 54 | N24: 33 | O24: -1 | P24: 6
A25: 0.48 | B25: 55 | C25: 0 | D25: 0 | E25: 0 | G25: 1.87 | H25: 39 | J25: =I26-I24 -> 29 | N25: 35 | O25: 9 | P25: 10
A26: 0.5 | B26: 55 | C26: 0 | D26: 0 | E26: 0 | I26: =H27-H25 -> 15 | N26: 36 | O26: 1 | P26: -8
A27: 0.52 | B27: 55 | C27: 0 | D27: 0 | E27: 0 | G27: 1.89 | H27: 54 | N27: 33 | O27: =M27-M26 -> 0 | P27: =O27-O26 -> -1
A28: 0.53 | B28: 55 | C28: 0 | D28: 0 | E28: 0 | H28: t = | I28: =G23+(G23-G21)*ABS(J23)/(ABS(J23)+ABS(J25)) -> 1.855853659 | J28: s | N28: 34 | O28: 0 | P28: 0
A29: 0.55 | B29: 55 | C29: 0 | D29: 0 | E29: 0
A30: 0.57 | B30: 55 | C30: 0 | D30: 0 | E30: 0 | G30: tijd | H30: waarde | I30: 1st der | J30: 2nd der | L30: 2.14 | M30: 54 | N30: 58 | O30: -1 | P30: -2
A31: 0.59 | B31: 55 | C31: 0 | D31: 0 | E31: 0 | G31: 2.14 | H31: 54 | L31: 2.15 | M31: 53 | N31: 60 | O31: 0 | P31: 1
A32: 0.61 | B32: 55 | C32: 0 | D32: 0 | E32: 0 | I32: =H33-H31 -> -1 | L32: 2.17 | M32: 50 | N32: 62 | O32: -15 | P32: -15
A33: 0.62 | B33: 55 | C33: 0 | D33: 0 | E33: 0 | G33: 2.15 | H33: 53 | J33: =I34-I32 -> -2 | L33: 2.19 | M33: 51 | N33: 64 | O33: 15 | P33: 30
A34: 0.64 | B34: 55 | C34: 0 | D34: 0 | E34: 0 | I34: =H35-H33 -> -3 | L34: 2.21 | M34: 53 | N34: 66 | O34: 0 | P34: -15
A35: 0.66 | B35: 55 | C35: 0 | D35: 0 | E35: 0 | G35: 2.17 | H35: 50 | J35: =I36-I34 -> 4 | N35: 68 | O35: 1 | P35: 1
A36: 0.68 | B36: 55 | C36: 0 | D36: 0 | E36: 0 | I36: =H37-H35 -> 1 | N36: 65 | O36: =M36-M35 -> 0 | P36: =O36-O35 -> -1
A37: 0.7 | B37: 55 | C37: 0 | D37: 0 | E37: 0 | G37: 2.19 | H37: 51 | N37: 66 | O37: 0 | P37: 0
A38: 0.71 | B38: 55 | C38: 0 | D38: 0 | E38: 0 | H38: t = | I38: =G33+(G33-G31)*ABS(J33)/(ABS(J33)+ABS(J35)) -> 2.153333333 | J38: s | N38: 0 | O38: -1
A39: 0.73 | B39: 55 | C39: 0 | D39: 0 | E39: 0
A40: 0.75 | B40: 55 | C40: 0 | D40: 0 | E40: 0 | G40: tijd | H40: waarde | I40: 1st der | J40: 2nd der | L40: 2.38 | M40: 52 | N40: 111 | O40: -1 | P40: -2
A41: 0.77 | B41: 55 | C41: 0 | D41: 0 | E41: 0 | G41: 2.38 | H41: 52 | L41: 2.4 | M41: 53 | N41: 113 | O41: 0 | P41: 1
A42: 0.78 | B42: 55 | C42: 0 | D42: 0 | E42: 0 | I42: =H43-H41 -> 1 | L42: 2.42 | M42: 38 | N42: 116 | O42: 0 | P42: 0
A43: 0.8 | B43: 55 | C43: 0 | D43: 0 | E43: 0 | G43: 2.4 | H43: 53 | J43: =I44-I42 -> -16 | L43: 2.44 | M43: 53 | N43: 118 | O43: 0 | P43: 0
A44: 0.82 | B44: 55 | C44: 0 | D44: 0 | E44: 0 | I44: =H45-H43 -> -15 | L44: 2.46 | M44: 53 | N44: 121 | O44: -12 | P44: -12
A45: 0.84 | B45: 55 | C45: 0 | D45: 0 | E45: 0 | G45: 2.42 | H45: 38 | J45: =I46-I44 -> 30 | N45: 124 | O45: 11 | P45: 23
A46: 0.85 | B46: 55 | C46: 0 | D46: 0 | E46: 0 | I46: =H47-H45 -> 15 | N46: 127 | O46: -12 | P46: -23
A47: 0.87 | B47: 55 | C47: 0 | D47: 0 | E47: 0 | G47: 2.44 | H47: 53 | N47: 129 | O47: 2 | P47: 14
A48: 0.89 | B48: 55 | C48: 0 | D48: 0 | E48: 0 | H48: t = | I48: =G43+(G43-G41)*ABS(J43)/(ABS(J43)+ABS(J45)) -> 2.406956522 | J48: s
A49: 0.91 | B49: 55 | C49: 0 | D49: 0 | E49: 0
A50: 0.92 | B50: 55 | C50: 0 | D50: 0 | E50: 0 | G50: tijd | H50: waarde | I50: 1st der | J50: 2nd der | L50: 2.6 | M50: 53
A51: 0.95 | B51: 55 | C51: 0 | D51: 0 | E51: 0 | G51: 2.6 | H51: 53 | L51: 2.62 | M51: 52
A52: 0.96 | B52: 55 | C52: 0 | D52: 0 | E52: 0 | I52: =H53-H51 -> -1 | L52: 2.63 | M52: 47
A53: 0.98 | B53: 55 | C53: 0 | D53: 0 | E53: 0 | G53: 2.62 | H53: 52 | J53: =I54-I52 -> -4 | L53: 2.65 | M53: 46
A54: 1 | B54: 55 | C54: 0 | D54: 0 | E54: 0 | I54: =H55-H53 -> -5 | L54: 2.67 | M54: 37
A55: 1.02 | B55: 55 | C55: 0 | D55: 0 | E55: 0 | G55: 2.63 | H55: 47 | J55: =I56-I54 -> 4
A56: 1.03 | B56: 55 | C56: 0 | D56: 0 | E56: 0 | I56: =H57-H55 -> -1
A57: 1.05 | B57: 55 | C57: 0 | D57: 0 | E57: 0 | G57: 2.65 | H57: 46
A58: 1.07 | B58: 55 | C58: 0 | D58: 0 | E58: 0 | H58: t = | I58: =G53+(G53-G51)*ABS(J53)/(ABS(J53)+ABS(J55)) -> 2.63 | J58: s
A59: 1.09 | B59: 55 | C59: 0 | D59: 0 | E59: 0
A60: 1.1 | B60: 55 | C60: 0 | D60: 0 | E60: 0
A61: 1.12 | B61: 55 | C61: 0 | D61: 0 | E61: 0
A62: 1.14 | B62: 54 | C62: 0 | D62: -1 | E62: -1
A63: 1.16 | B63: 54 | C63: 0 | D63: 0 | E63: 1
A64: 1.17 | B64: 55 | C64: 0 | D64: 1 | E64: 1
A65: 1.19 | B65: 55 | C65: 0 | D65: 0 | E65: -1
A66: 1.21 | B66: 52 | C66: 1 | D66: -3 | E66: -3
A67: 1.23 | B67: 44 | C67: 1 | D67: -8 | E67: -5
A68: 1.25 | B68: 40 | C68: 1 | D68: -4 | E68: 4
A69: 1.26 | B69: 40 | C69: 2 | D69: =B69-B68 -> 0 | E69: 4
A70: 1.28 | B70: 39 | C70: 2 | D70: -1 | E70: =D70-D69 -> -1
A71: 1.3 | B71: 42 | C71: 2 | D71: 3 | E71: 4
A72: 1.32 | B72: 53 | C72: 3 | D72: 11 | E72: 8
A73: 1.34 | B73: 55 | C73: 3 | D73: 2 | E73: -9
A74: 1.35 | B74: 55 | C74: 4 | D74: 0 | E74: -2
A75: 1.37 | B75: 55 | C75: 4 | D75: 0 | E75: 0
A76: 1.39 | B76: 55 | C76: 5 | D76: 0 | E76: 0
A77: 1.41 | B77: 55 | C77: 5 | D77: 0 | E77: 0
A78: 1.42 | B78: 54 | C78: 6 | D78: -1 | E78: -1
A79: 1.44 | B79: 54 | C79: 6 | D79: 0 | E79: 1
A80: 1.46 | B80: 54 | C80: 7 | D80: 0 | E80: 0
A81: 1.48 | B81: 55 | C81: 8 | D81: 1 | E81: 1
A82: 1.5 | B82: 55 | C82: 8 | D82: 0 | E82: -1
A83: 1.51 | B83: 55 | C83: 9 | D83: 0 | E83: 0
A84: 1.53 | B84: 54 | C84: 10 | D84: -1 | E84: -1
A85: 1.55 | B85: 54 | C85: 11 | D85: 0 | E85: 1
A86: 1.57 | B86: 55 | C86: 12 | D86: 1 | E86: 1
A87: 1.58 | B87: 55 | C87: 13 | D87: 0 | E87: -1
A88: 1.6 | B88: 54 | C88: 14 | D88: -1 | E88: -1
A89: 1.62 | B89: 54 | C89: 15 | D89: 0 | E89: 1
A90: 1.64 | B90: 54 | C90: 16 | D90: 0 | E90: 0
A91: 1.65 | B91: 55 | C91: 17 | D91: 1 | E91: 1
A92: 1.67 | B92: 54 | C92: 18 | D92: -1 | E92: -2
A93: 1.69 | B93: 54 | C93: 19 | D93: 0 | E93: 1
A94: 1.71 | B94: 55 | C94: 20 | D94: 1 | E94: 1
A95: 1.73 | B95: 54 | C95: 21 | D95: -1 | E95: -2
A96: 1.75 | B96: 54 | C96: 22 | D96: 0 | E96: 1
A97: 1.76 | B97: 55 | C97: 24 | D97: 1 | E97: 1
A98: 1.78 | B98: 54 | C98: 25 | D98: -1 | E98: -2
A99: 1.8 | B99: 53 | C99: 26 | D99: -1 | E99: 0
A100: 1.82 | B100: 54 | C100: 28 | D100: 1 | E100: 2
A101: 1.83 | B101: 55 | C101: 29 | D101: 1 | E101: 0
A102: 1.85 | B102: 53 | C102: 30 | D102: -2 | E102: -3
A103: 1.87 | B103: 39 | C103: 32 | D103: -14 | E103: -12
A104: 1.89 | B104: 54 | C104: 33 | D104: 15 | E104: 29
A105: 1.9 | B105: 54 | C105: 35 | D105: 0 | E105: -15
A106: 1.92 | B106: 55 | C106: 36 | D106: 1 | E106: 1
A107: 1.94 | B107: 54 | C107: 38 | D107: -1 | E107: -2
A108: 1.96 | B108: 54 | C108: 39 | D108: 0 | E108: 1
A109: 1.97 | B109: 54 | C109: 41 | D109: 0 | E109: 0
A110: 1.99 | B110: 54 | C110: 43 | D110: 0 | E110: 0
A111: 2.01 | B111: 55 | C111: 44 | D111: 1 | E111: 1
A112: 2.03 | B112: 53 | C112: 46 | D112: -2 | E112: -3
A113: 2.05 | B113: 54 | C113: 48 | D113: 1 | E113: 3
A114: 2.07 | B114: 54 | C114: 49 | D114: 0 | E114: -1
A115: 2.08 | B115: 53 | C115: 51 | D115: -1 | E115: -1
A116: 2.1 | B116: 54 | C116: 53 | D116: 1 | E116: 2
A117: 2.12 | B117: 53 | C117: 55 | D117: -1 | E117: -2
A118: 2.14 | B118: 54 | C118: 56 | D118: 1 | E118: 2
A119: 2.15 | B119: 53 | C119: 59 | D119: -1 | E119: -2
A120: 2.17 | B120: 50 | C120: 60 | D120: -3 | E120: -2
A121: 2.19 | B121: 51 | C121: 63 | D121: 1 | E121: 4
A122: 2.21 | B122: 53 | C122: 64 | D122: 2 | E122: 1
A123: 2.22 | B123: 53 | C123: 66 | D123: 0 | E123: -2
A124: 2.24 | B124: 54 | C124: 69 | D124: 1 | E124: 1
A125: 2.26 | B125: 53 | C125: 71 | D125: -1 | E125: -2
A126: 2.28 | B126: 53 | C126: 73 | D126: 0 | E126: 1
A127: 2.3 | B127: 53 | C127: 75 | D127: 0 | E127: 0
A128: 2.31 | B128: 53 | C128: 78 | D128: 0 | E128: 0
A129: 2.33 | B129: 54 | C129: 80 | D129: 1 | E129: 1
A130: 2.35 | B130: 53 | C130: 82 | D130: -1 | E130: -2
A131: 2.37 | B131: 53 | C131: 84 | D131: 0 | E131: 1
A132: 2.38 | B132: 52 | C132: 86 | D132: -1 | E132: -1
A133: 2.4 | B133: 53 | C133: 89 | D133: =B133-B132 -> 1 | E133: 2
A134: 2.42 | B134: 38 | C134: 91 | D134: -15 | E134: =D134-D133 -> -16
A135: 2.44 | B135: 53 | C135: 94 | D135: 15 | E135: 30
A136: 2.46 | B136: 53 | C136: 96 | D136: 0 | E136: -15
A137: 2.47 | B137: 52 | C137: 98 | D137: -1 | E137: -1
A138: 2.49 | B138: 53 | C138: 101 | D138: 1 | E138: 2
A139: 2.51 | B139: 52 | C139: 104 | D139: -1 | E139: -2
A140: 2.53 | B140: 51 | C140: 106 | D140: -1 | E140: 0
A141: 2.55 | B141: 53 | C141: 109 | D141: 2 | E141: 3
A142: 2.56 | B142: 52 | C142: 112 | D142: -1 | E142: -3
A143: 2.58 | B143: 51 | C143: 114 | D143: -1 | E143: 0
A144: 2.6 | B144: 53 | C144: 117 | D144: 2 | E144: 3
A145: 2.62 | B145: 52 | C145: 119 | D145: -1 | E145: -3
A146: 2.63 | B146: 47 | C146: 122 | D146: -5 | E146: -4
A147: 2.65 | B147: 46 | C147: 125 | D147: -1 | E147: 4
A148: 2.67 | B148: 37 | C148: 128 | D148: -9 | E148: -8
A149: 2.69 | B149: 36 | C149: 130 | D149: -1 | E149: 8
A150: 2.71 | B150: 39 | C150: 132 | D150: 3 | E150: 4
A151: 2.72 | B151: 40 | C151: 135 | D151: 1 | E151: -2
A152: 2.74 | B152: 39 | C152: 137 | D152: -1 | E152: -2
A153: 2.76 | B153: 40 | C153: 137 | D153: 1 | E153: 2
A154: 2.78 | B154: 40 | C154: 136 | D154: 0 | E154: -1
A155: 2.8 | B155: 40 | C155: 136 | D155: 0 | E155: 0
A156: 2.81 | B156: 40 | C156: 136 | D156: 0 | E156: 0
A157: 2.83 | B157: 39 | C157: 136 | D157: -1 | E157: -1
A158: 2.85 | B158: 39 | C158: 135 | D158: 0 | E158: 1
A159: 2.87 | B159: 39 | C159: 135 | D159: 0 | E159: 0
A160: 2.88 | B160: 39 | C160: 135 | D160: 0 | E160: 0
A161: 2.9 | B161: 39 | C161: 135 | D161: 0 | E161: 0
A162: 2.92 | B162: 38 | C162: 135 | D162: -1 | E162: -1
A163: 2.94 | B163: 38 | C163: 136 | D163: 0 | E163: 1
A164: 2.95 | B164: 38 | C164: 136 | D164: 0 | E164: 0
A165: 2.97 | B165: 38 | C165: 136 | D165: 0 | E165: 0
A166: 2.99 | B166: 37 | C166: 136 | D166: -1 | E166: -1
A167: 3.01 | B167: 37 | C167: 135 | D167: 0 | E167: 1
A168: 3.03 | B168: 37 | C168: 135 | D168: 0 | E168: 0
A169: 3.04 | B169: 38 | C169: 135 | D169: 1 | E169: 1
A170: 3.06 | B170: 39 | C170: 135 | D170: 1 | E170: 0
A171: 3.08 | B171: 38 | C171: 135 | D171: -1 | E171: -2
A172: 3.1 | B172: 38 | C172: 135 | D172: 0 | E172: 1
A173: 3.12 | B173: 38 | C173: 135 | D173: 0 | E173: 0
A174: 3.13 | B174: 38 | C174: 135 | D174: 0 | E174: 0
A175: 3.15 | B175: 38 | C175: 135 | D175: 0 | E175: 0
A176: 3.17 | B176: 38 | C176: 134 | D176: 0 | E176: 0
A177: 3.19 | B177: 38 | C177: 134 | D177: 0 | E177: 0
A178: 3.2 | B178: 39 | C178: 134 | D178: 1 | E178: 1
A179: 3.22 | B179: 38 | C179: 134 | D179: -1 | E179: -2
A180: 3.24 | B180: 38 | C180: 134 | D180: 0 | E180: 1
A181: 3.26 | B181: 38 | C181: 134 | D181: 0 | E181: 0
A182: 3.27 | B182: 38 | C182: 134 | D182: 0 | E182: 0
A183: 3.29 | B183: 39 | C183: 134 | D183: 1 | E183: 1
A184: 3.31 | B184: 38 | C184: 134 | D184: -1 | E184: -2
A185: 3.33 | B185: 38 | C185: 134 | D185: 0 | E185: 1
A186: 3.35 | B186: 38 | C186: 134 | D186: 0 | E186: 0
A187: 3.36 | B187: 38 | C187: 134 | D187: 0 | E187: 0
A188: 3.38 | B188: 39 | C188: 134 | D188: 1 | E188: 1
A189: 3.4 | B189: 39 | C189: 134 | D189: 0 | E189: -1
A190: 3.42 | B190: 38 | C190: 134 | D190: -1 | E190: -1
A191: 3.44 | B191: 39 | C191: 134 | D191: 1 | E191: 2
A192: 3.45 | B192: 39 | C192: 134 | D192: 0 | E192: -1
A193: 3.47 | B193: 38 | C193: 134 | D193: -1 | E193: -1
A194: 3.49 | B194: 38 | C194: 134 | D194: 0 | E194: 1
A195: 3.51 | B195: 38 | C195: 134 | D195: 0 | E195: 0
A196: 3.52 | B196: 38 | C196: 134 | D196: 0 | E196: 0
A197: 3.54 | B197: 39 | C197: 134 | D197: =B197-B196 -> 1 | E197: 1
A198: 3.56 | B198: 38 | C198: 134 | D198: -1 | E198: =D198-D197 -> -2
A199: 3.58 | B199: 38 | C199: 134 | D199: 0 | E199: 1
A200: 3.6 | B200: 38 | C200: 134 | D200: 0 | E200: 0
... 136 more rows

Sheet 290320092024_1
A1: s | B1: RAW | G1: tijdstip | H1: genormaliseerd | I1: afstand | J1: snelheid | K1: versnelling | M1: rotatiesensorwaarde | P1: afstand
A2: Tijd | B2: Licht | C2: Rotatie | D2: 1ste der | E2: 2de der | G2: s | H2: s | I2: cm | J2: m/s | K2: m/s2 | M2: ruw | N2: gecorr. | O2: wielrot | P2: cm
A3: 0.09 | B3: 54 | C3: 0 | G3: =I17 -> 0.42 | H3: =G3-$G$3 -> 0 | I3: 0 | J3: 0 | K3: 0 | M3: =VLOOKUP(G3,$A$3:$C$362,3) -> 1 | N3: =M3-$M$3 -> 0 | O3: =N3/16 -> 0 | P3: =O3*$O$8 -> 0
A4: 0.11 | B4: 54 | C4: 0 | D4: =B4-B3 -> 0 | G4: =I28 -> 1.057111111 | H4: =G4-$G$3 -> 0.6371111111 | I4: 25 | J4: =I4/(G4-G3)/100 -> 0.392396233 | K4: =(J4-K3)/H4 -> 0.6158992147 | M4: =VLOOKUP(G4,$A$3:$C$362,3) -> 31 | N4: =M4-$M$3 -> 30 | O4: =N4/16 -> 1.875 | P4: =O4*$O$8 -> 25.32909077
A5: 0.12 | B5: 54 | C5: 0 | D5: =B5-B4 -> 0 | E5: =D5-D4 -> 0 | G5: =I38 -> 1.35372093 | H5: =G5-$G$3 -> 0.9337209302 | I5: 50 | J5: =I5/(G5-G4)/100 -> 1.685716277 | K5: =(J5-K4)/H5 -> 1.145756754 | M5: 59 | N5: 58 | O5: 3.625 | P5: 48.96957549
A6: 0.14 | B6: 54 | C6: 0 | D6: 0 | E6: =D6-D5 -> 0 | G6: =I48 -> 1.606153846 | H6: =G6-$G$3 -> 1.186153846 | I6: 75 | J6: =I6/(G6-G5)/100 -> 2.971086387 | K6: =(J6-K5)/H6 -> 1.538864152 | M6: 90 | N6: 89 | O6: 5.5625 | P6: 75.14296928
A7: 0.16 | B7: 54 | C7: 0 | D7: 0 | E7: 0 | G7: =I58 -> 1.835 | H7: =G7-$G$3 -> 1.415 | I7: 100 | J7: =I7/(G7-G6)/100 -> 4.369747899 | K7: =(J7-K6)/H7 -> 2.000624556 | M7: 123 | N7: 122 | O7: 7.625 | P7: 103.0049691
A8: 0.18 | B8: 54 | C8: 0 | D8: 0 | E8: 0 | M8: Diameter = | O8: =2*PI()*4.3/2 -> 13.50884841
A9: 0.2 | B9: 54 | C9: 0 | D9: 0 | E9: 0 | G9: tijd | H9: waarde | I9: 1st der | J9: 2nd der
A10: 0.21 | B10: 54 | C10: 0 | D10: 0 | E10: 0 | G10: 0.39 | H10: 53 | L10: 0.37 | M10: 54 | N10: 0 | O10: 0 | P10: 0
A11: 0.23 | B11: 54 | C11: 0 | D11: 0 | E11: 0 | I11: =H12-H10 -> -3 | L11: 0.39 | M11: 53 | N11: 0 | O11: -1 | P11: -1
A12: 0.25 | B12: 54 | C12: 0 | D12: 0 | E12: 0 | G12: 0.41 | H12: 50 | J12: =I13-I11 -> -6 | L12: 0.41 | M12: 50 | N12: 0 | O12: 0 | P12: 1
A13: 0.27 | B13: 54 | C13: 0 | D13: 0 | E13: 0 | I13: =H14-H12 -> -9 | L13: 0.43 | M13: 41 | N13: 0 | O13: 0 | P13: 0
A14: 0.28 | B14: 54 | C14: 0 | D14: 0 | E14: 0 | G14: 0.43 | H14: 41 | J14: =I15-I13 -> 6 | L14: 0.45 | M14: 38 | N14: 1 | O14: -2 | P14: -2
A15: 0.3 | B15: 54 | C15: 0 | D15: 0 | E15: 0 | I15: =H16-H14 -> -3 | L15: 0.46 | M15: 39 | N15: 1 | O15: -9 | P15: -7
A16: 0.32 | B16: 54 | C16: 0 | D16: 0 | E16: 0 | G16: 0.45 | H16: 38 | N16: 1 | O16: -3 | P16: 6
A17: 0.34 | B17: 54 | C17: 0 | D17: 0 | E17: 0 | I17: =G12+(G12-G10)*ABS(J12)/(ABS(J12)+ABS(J14)) -> 0.42 | J17: s | N17: 2 | O17: -1 | P17: 2
A18: 0.36 | B18: 54 | C18: 0 | D18: 0 | E18: 0 | N18: 2 | O18: 0 | P18: 1
A19: 0.37 | B19: 54 | C19: 1 | D19: 0 | E19: 0
A20: 0.39 | B20: 53 | C20: 1 | D20: -1 | E20: -1 | G20: tijd | H20: waarde | I20: 1st der | J20: 2nd der | L20: 1.02 | M20: 54 | N20: 29 | O20: -1 | P20: -1
A21: 0.41 | B21: 50 | C21: 1 | D21: -3 | E21: -2 | G21: 1.03 | H21: 53 | L21: 1.03 | M21: 53 | N21: 30 | O21: 1 | P21: 2
A22: 0.43 | B22: 41 | C22: 1 | D22: -9 | E22: -6 | I22: =H23-H21 -> 1 | L22: 1.05 | M22: 54 | N22: 32 | O22: -14 | P22: -15
A23: 0.45 | B23: 38 | C23: 2 | D23: -3 | E23: 6 | G23: 1.05 | H23: 54 | J23: =I24-I22 -> -16 | L23: 1.07 | M23: 39 | N23: 33 | O23: 14 | P23: 28
A24: 0.46 | B24: 39 | C24: 2 | D24: 1 | E24: 4 | I24: =H25-H23 -> -15 | L24: 1.09 | M24: 53 | N24: 34 | O24: 0 | P24: -14
A25: 0.48 | B25: 40 | C25: 2 | D25: 1 | E25: 0 | G25: 1.07 | H25: 39 | J25: =I26-I24 -> 29 | L25: 1.1 | M25: 54 | N25: 36 | O25: -1 | P25: -1
A26: 0.5 | B26: 45 | C26: 3 | D26: 5 | E26: 4 | I26: =H27-H25 -> 14 | N26: 32 | O26: =M26-M25 -> -54 | P26: =O26-O25 -> -53
A27: 0.52 | B27: 54 | C27: 3 | D27: 9 | E27: 4 | G27: 1.09 | H27: 53 | N27: 33 | O27: 0 | P27: 54
A28: 0.53 | B28: 54 | C28: 3 | D28: 0 | E28: -9 | H28: t = | I28: =G23+(G23-G21)*ABS(J23)/(ABS(J23)+ABS(J25)) -> 1.057111111 | J28: s | N28: 34 | O28: 0 | P28: 0
A29: 0.55 | B29: 55 | C29: 4 | D29: 1 | E29: 1
A30: 0.57 | B30: 54 | C30: 4 | D30: -1 | E30: -2 | G30: tijd | H30: waarde | I30: 1st der | J30: 2nd der | L30: 1.34 | M30: 52 | N30: 55 | O30: -1 | P30: -2
A31: 0.59 | B31: 53 | C31: 5 | D31: -1 | E31: 0 | G31: 1.34 | H31: 52 | L31: 1.35 | M31: 54 | N31: 57 | O31: 0 | P31: 1
A32: 0.6 | B32: 54 | C32: 6 | D32: 1 | E32: 2 | I32: =H33-H31 -> 2 | L32: 1.37 | M32: 40 | N32: 59 | O32: -15 | P32: -15
A33: 0.62 | B33: 54 | C33: 6 | D33: 0 | E33: -1 | G33: 1.35 | H33: 54 | J33: =I34-I32 -> -16 | L33: 1.39 | M33: 53 | N33: 61 | O33: 15 | P33: 30
A34: 0.64 | B34: 55 | C34: 7 | D34: 1 | E34: 1 | I34: =H35-H33 -> -14 | L34: 1.41 | M34: 52 | N34: 63 | O34: 0 | P34: -15
A35: 0.66 | B35: 55 | C35: 7 | D35: 0 | E35: -1 | G35: 1.37 | H35: 40 | J35: =I36-I34 -> 27 | N35: 65 | O35: 0 | P35: 0
A36: 0.67 | B36: 54 | C36: 8 | D36: -1 | E36: -1 | I36: =H37-H35 -> 13 | N36: 65 | O36: =M36-M35 -> 0 | P36: =O36-O35 -> 0
A37: 0.69 | B37: 53 | C37: 9 | D37: -1 | E37: 0 | G37: 1.39 | H37: 53 | N37: 66 | O37: 0 | P37: 0
A38: 0.71 | B38: 54 | C38: 10 | D38: 1 | E38: 2 | H38: t = | I38: =G33+(G33-G31)*ABS(J33)/(ABS(J33)+ABS(J35)) -> 1.35372093 | J38: s | N38: 0 | O38: -1
A39: 0.73 | B39: 55 | C39: 11 | D39: 1 | E39: 0
A40: 0.75 | B40: 55 | C40: 11 | D40: 0 | E40: -1 | G40: tijd | H40: waarde | I40: 1st der | J40: 2nd der | L40: 1.58 | M40: 52 | N40: 113 | O40: 0 | P40: 1
A41: 0.77 | B41: 54 | C41: 12 | D41: -1 | E41: -1 | G41: 1.58 | H41: 52 | L41: 1.6 | M41: 51 | N41: 116 | O41: 1 | P41: 1
A42: 0.78 | B42: 53 | C42: 13 | D42: -1 | E42: 0 | I42: =H43-H41 -> -1 | L42: 1.62 | M42: 38 | N42: 120 | O42: -16 | P42: -17
A43: 0.8 | B43: 54 | C43: 14 | D43: 1 | E43: 2 | G43: 1.6 | H43: 51 | J43: =I44-I42 -> -12 | L43: 1.64 | M43: 52 | N43: 122 | O43: 14 | P43: 30
A44: 0.82 | B44: 54 | C44: 15 | D44: 0 | E44: -1 | I44: =H45-H43 -> -13 | L44: 1.65 | M44: 52 | N44: 125 | O44: -11 | P44: -25
A45: 0.84 | B45: 54 | C45: 16 | D45: 0 | E45: 0 | G45: 1.62 | H45: 38 | J45: =I46-I44 -> 27 | N45: 128 | O45: 2 | P45: 13
A46: 0.85 | B46: 53 | C46: 17 | D46: -1 | E46: -1 | I46: =H47-H45 -> 14 | N46: 96 | O46: 0 | P46: -1
A47: 0.87 | B47: 54 | C47: 18 | D47: 1 | E47: 2 | G47: 1.64 | H47: 52
A48: 0.89 | B48: 55 | C48: 19 | D48: 1 | E48: 0 | H48: t = | I48: =G43+(G43-G41)*ABS(J43)/(ABS(J43)+ABS(J45)) -> 1.606153846 | J48: s
A49: 0.91 | B49: 54 | C49: 21 | D49: -1 | E49: -2
A50: 0.92 | B50: 53 | C50: 22 | D50: -1 | E50: 0 | G50: tijd | H50: waarde | I50: 1st der | J50: 2nd der | L50: 1.82 | M50: 52
A51: 0.94 | B51: 54 | C51: 23 | D51: 1 | E51: 2 | G51: 1.82 | H51: 52 | L51: 1.83 | M51: 50
A52: 0.96 | B52: 54 | C52: 24 | D52: 0 | E52: -1 | I52: =H53-H51 -> -2 | L52: 1.85 | M52: 39
A53: 0.98 | B53: 53 | C53: 25 | D53: -1 | E53: -1 | G53: 1.83 | H53: 50 | J53: =I54-I52 -> -9 | L53: 1.87 | M53: 37
A54: 1 | B54: 54 | C54: 27 | D54: 1 | E54: 2 | I54: =H55-H53 -> -11 | L54: 1.89 | M54: 36
A55: 1.02 | B55: 54 | C55: 28 | D55: 0 | E55: -1 | G55: 1.85 | H55: 39 | J55: =I56-I54 -> 9
A56: 1.03 | B56: 53 | C56: 30 | D56: -1 | E56: -1 | I56: =H57-H55 -> -2
A57: 1.05 | B57: 54 | C57: 31 | D57: 1 | E57: 2 | G57: 1.87 | H57: 37
A58: 1.07 | B58: 39 | C58: 32 | D58: -15 | E58: -16 | H58: t = | I58: =G53+(G53-G51)*ABS(J53)/(ABS(J53)+ABS(J55)) -> 1.835 | J58: s
A59: 1.09 | B59: 53 | C59: 34 | D59: 14 | E59: 29
A60: 1.1 | B60: 54 | C60: 35 | D60: 1 | E60: -13
A61: 1.12 | B61: 54 | C61: 37 | D61: 0 | E61: -1
A62: 1.14 | B62: 54 | C62: 38 | D62: 0 | E62: 0
A63: 1.16 | B63: 54 | C63: 40 | D63: 0 | E63: 0
A64: 1.17 | B64: 53 | C64: 41 | D64: -1 | E64: -1
A65: 1.19 | B65: 54 | C65: 43 | D65: 1 | E65: 2
A66: 1.21 | B66: 53 | C66: 45 | D66: -1 | E66: -2
A67: 1.23 | B67: 53 | C67: 47 | D67: 0 | E67: 1
A68: 1.25 | B68: 53 | C68: 48 | D68: 0 | E68: 0
A69: 1.26 | B69: 53 | C69: 50 | D69: =B69-B68 -> 0 | E69: 0
A70: 1.28 | B70: 54 | C70: 52 | D70: 1 | E70: =D70-D69 -> 1
A71: 1.3 | B71: 53 | C71: 54 | D71: -1 | E71: -2
A72: 1.32 | B72: 54 | C72: 55 | D72: 1 | E72: 2
A73: 1.34 | B73: 52 | C73: 58 | D73: -2 | E73: -3
A74: 1.35 | B74: 54 | C74: 59 | D74: 2 | E74: 4
A75: 1.37 | B75: 40 | C75: 61 | D75: -14 | E75: -16
A76: 1.39 | B76: 53 | C76: 63 | D76: 13 | E76: 27
A77: 1.41 | B77: 52 | C77: 65 | D77: -1 | E77: -14
A78: 1.42 | B78: 53 | C78: 67 | D78: 1 | E78: 2
A79: 1.44 | B79: 52 | C79: 69 | D79: -1 | E79: -2
A80: 1.46 | B80: 53 | C80: 71 | D80: 1 | E80: 2
A81: 1.48 | B81: 52 | C81: 74 | D81: -1 | E81: -2
A82: 1.5 | B82: 53 | C82: 76 | D82: 1 | E82: 2
A83: 1.51 | B83: 52 | C83: 78 | D83: -1 | E83: -2
A84: 1.53 | B84: 53 | C84: 80 | D84: 1 | E84: 2
A85: 1.55 | B85: 52 | C85: 83 | D85: -1 | E85: -2
A86: 1.57 | B86: 53 | C86: 85 | D86: 1 | E86: 2
A87: 1.58 | B87: 52 | C87: 87 | D87: -1 | E87: -2
A88: 1.6 | B88: 51 | C88: 90 | D88: -1 | E88: 0
A89: 1.62 | B89: 38 | C89: 91 | D89: -13 | E89: -12
A90: 1.64 | B90: 52 | C90: 94 | D90: 14 | E90: 27
A91: 1.65 | B91: 52 | C91: 96 | D91: 0 | E91: -14
A92: 1.67 | B92: 53 | C92: 99 | D92: 1 | E92: 1
A93: 1.69 | B93: 51 | C93: 101 | D93: -2 | E93: -3
A94: 1.71 | B94: 52 | C94: 104 | D94: 1 | E94: 3
A95: 1.73 | B95: 51 | C95: 107 | D95: -1 | E95: -2
A96: 1.75 | B96: 52 | C96: 109 | D96: 1 | E96: 2
A97: 1.76 | B97: 52 | C97: 111 | D97: 0 | E97: -1
A98: 1.78 | B98: 52 | C98: 114 | D98: 0 | E98: 0
A99: 1.8 | B99: 51 | C99: 117 | D99: -1 | E99: -1
A100: 1.82 | B100: 52 | C100: 120 | D100: 1 | E100: 2
A101: 1.83 | B101: 50 | C101: 123 | D101: -2 | E101: -3
A102: 1.85 | B102: 39 | C102: 125 | D102: -11 | E102: -9
A103: 1.87 | B103: 37 | C103: 127 | D103: -2 | E103: 9
A104: 1.89 | B104: 36 | C104: 130 | D104: -1 | E104: 1
A105: 1.9 | B105: 40 | C105: 132 | D105: 4 | E105: 5
A106: 1.92 | B106: 37 | C106: 132 | D106: -3 | E106: -7
A107: 1.94 | B107: 37 | C107: 132 | D107: 0 | E107: 3
A108: 1.96 | B108: 38 | C108: 132 | D108: 1 | E108: 1
A109: 1.97 | B109: 38 | C109: 132 | D109: 0 | E109: -1
A110: 1.99 | B110: 38 | C110: 132 | D110: 0 | E110: 0
A111: 2.01 | B111: 39 | C111: 132 | D111: 1 | E111: 1
A112: 2.03 | B112: 42 | C112: 133 | D112: 3 | E112: 2
A113: 2.05 | B113: 39 | C113: 133 | D113: -3 | E113: -6
A114: 2.07 | B114: 41 | C114: 133 | D114: 2 | E114: 5
A115: 2.08 | B115: 43 | C115: 134 | D115: 2 | E115: 0
A116: 2.1 | B116: 40 | C116: 135 | D116: -3 | E116: -5
A117: 2.12 | B117: 39 | C117: 135 | D117: -1 | E117: 2
A118: 2.14 | B118: 38 | C118: 135 | D118: -1 | E118: 0
A119: 2.15 | B119: 38 | C119: 135 | D119: 0 | E119: 1
A120: 2.17 | B120: 38 | C120: 135 | D120: 0 | E120: 0
A121: 2.19 | B121: 38 | C121: 135 | D121: 0 | E121: 0
A122: 2.21 | B122: 38 | C122: 135 | D122: 0 | E122: 0
A123: 2.22 | B123: 38 | C123: 135 | D123: 0 | E123: 0
A124: 2.24 | B124: 38 | C124: 135 | D124: 0 | E124: 0
A125: 2.26 | B125: 38 | C125: 135 | D125: 0 | E125: 0
A126: 2.28 | B126: 38 | C126: 135 | D126: 0 | E126: 0
A127: 2.3 | B127: 38 | C127: 135 | D127: 0 | E127: 0
A128: 2.31 | B128: 38 | C128: 135 | D128: 0 | E128: 0
A129: 2.33 | B129: 38 | C129: 135 | D129: 0 | E129: 0
A130: 2.35 | B130: 38 | C130: 135 | D130: 0 | E130: 0
A131: 2.37 | B131: 38 | C131: 135 | D131: 0 | E131: 0
A132: 2.38 | B132: 38 | C132: 135 | D132: 0 | E132: 0
A133: 2.4 | B133: 38 | C133: 135 | D133: =B133-B132 -> 0 | E133: 0
A134: 2.42 | B134: 38 | C134: 135 | D134: 0 | E134: =D134-D133 -> 0
A135: 2.44 | B135: 38 | C135: 135 | D135: 0 | E135: 0
A136: 2.46 | B136: 38 | C136: 135 | D136: 0 | E136: 0
A137: 2.47 | B137: 38 | C137: 135 | D137: 0 | E137: 0
A138: 2.49 | B138: 38 | C138: 135 | D138: 0 | E138: 0
A139: 2.51 | B139: 38 | C139: 135 | D139: 0 | E139: 0
A140: 2.53 | B140: 38 | C140: 135 | D140: 0 | E140: 0
A141: 2.55 | B141: 38 | C141: 135 | D141: 0 | E141: 0
A142: 2.56 | B142: 39 | C142: 135 | D142: 1 | E142: 1
A143: 2.58 | B143: 39 | C143: 135 | D143: 0 | E143: -1
A144: 2.6 | B144: 40 | C144: 135 | D144: 1 | E144: 1
A145: 2.62 | B145: 40 | C145: 135 | D145: 0 | E145: -1
A146: 2.63 | B146: 40 | C146: 135 | D146: 0 | E146: 0
A147: 2.65 | B147: 40 | C147: 135 | D147: 0 | E147: 0
A148: 2.67 | B148: 40 | C148: 135 | D148: 0 | E148: 0
A149: 2.69 | B149: 40 | C149: 135 | D149: 0 | E149: 0
A150: 2.7 | B150: 40 | C150: 135 | D150: 0 | E150: 0
A151: 2.72 | B151: 40 | C151: 135 | D151: 0 | E151: 0
A152: 2.74 | B152: 40 | C152: 135 | D152: 0 | E152: 0
A153: 2.76 | B153: 40 | C153: 135 | D153: 0 | E153: 0
A154: 2.78 | B154: 40 | C154: 135 | D154: 0 | E154: 0
A155: 2.79 | B155: 40 | C155: 135 | D155: 0 | E155: 0
A156: 2.81 | B156: 40 | C156: 135 | D156: 0 | E156: 0
A157: 2.83 | B157: 40 | C157: 135 | D157: 0 | E157: 0
A158: 2.85 | B158: 40 | C158: 135 | D158: 0 | E158: 0
A159: 2.87 | B159: 40 | C159: 135 | D159: 0 | E159: 0
A160: 2.88 | B160: 40 | C160: 135 | D160: 0 | E160: 0
A161: 2.9 | B161: 40 | C161: 135 | D161: 0 | E161: 0
A162: 2.92 | B162: 40 | C162: 135 | D162: 0 | E162: 0
A163: 2.94 | B163: 40 | C163: 135 | D163: 0 | E163: 0
A164: 2.95 | B164: 40 | C164: 135 | D164: 0 | E164: 0
A165: 2.97 | B165: 40 | C165: 135 | D165: 0 | E165: 0
A166: 2.99 | B166: 40 | C166: 135 | D166: 0 | E166: 0
A167: 3.01 | B167: 40 | C167: 135 | D167: 0 | E167: 0
A168: 3.03 | B168: 40 | C168: 135 | D168: 0 | E168: 0
A169: 3.04 | B169: 40 | C169: 135 | D169: 0 | E169: 0
A170: 3.06 | B170: 40 | C170: 135 | D170: 0 | E170: 0
A171: 3.08 | B171: 40 | C171: 135 | D171: 0 | E171: 0
A172: 3.1 | B172: 40 | C172: 135 | D172: 0 | E172: 0
A173: 3.11 | B173: 40 | C173: 135 | D173: 0 | E173: 0
A174: 3.13 | B174: 40 | C174: 135 | D174: 0 | E174: 0
A175: 3.15 | B175: 40 | C175: 135 | D175: 0 | E175: 0
A176: 3.17 | B176: 40 | C176: 135 | D176: 0 | E176: 0
A177: 3.18 | B177: 40 | C177: 135 | D177: 0 | E177: 0
A178: 3.2 | B178: 40 | C178: 135 | D178: 0 | E178: 0
A179: 3.22 | B179: 40 | C179: 135 | D179: 0 | E179: 0
A180: 3.24 | B180: 40 | C180: 135 | D180: 0 | E180: 0
A181: 3.26 | B181: 40 | C181: 135 | D181: 0 | E181: 0
A182: 3.27 | B182: 40 | C182: 135 | D182: 0 | E182: 0
A183: 3.29 | B183: 40 | C183: 135 | D183: 0 | E183: 0
A184: 3.31 | B184: 40 | C184: 135 | D184: 0 | E184: 0
A185: 3.33 | B185: 40 | C185: 135 | D185: 0 | E185: 0
A186: 3.35 | B186: 40 | C186: 135 | D186: 0 | E186: 0
A187: 3.36 | B187: 40 | C187: 135 | D187: 0 | E187: 0
A188: 3.38 | B188: 40 | C188: 135 | D188: 0 | E188: 0
A189: 3.4 | B189: 40 | C189: 135 | D189: 0 | E189: 0
A190: 3.42 | B190: 40 | C190: 135 | D190: 0 | E190: 0
A191: 3.43 | B191: 40 | C191: 135 | D191: 0 | E191: 0
A192: 3.45 | B192: 40 | C192: 135 | D192: 0 | E192: 0
A193: 3.47 | B193: 40 | C193: 135 | D193: 0 | E193: 0
A194: 3.49 | B194: 40 | C194: 135 | D194: 0 | E194: 0
A195: 3.5 | B195: 40 | C195: 135 | D195: 0 | E195: 0
A196: 3.52 | B196: 40 | C196: 135 | D196: 0 | E196: 0
A197: 3.54 | B197: 40 | C197: 135 | D197: =B197-B196 -> 0 | E197: 0
A198: 3.56 | B198: 40 | C198: 135 | D198: 0 | E198: =D198-D197 -> 0
A199: 3.58 | B199: 40 | C199: 135 | D199: 0 | E199: 0
A200: 3.59 | B200: 40 | C200: 135 | D200: 0 | E200: 0
... 136 more rows

Sheet 220320092024_3
A1: s | B1: RAW | G1: tijdstip | H1: genormaliseerd | I1: afstand | J1: snelheid | K1: versnelling | M1: rotatiesensorwaarde | P1: afstand
A2: Tijd | B2: Licht | C2: Rotatie | D2: 1ste der | E2: 2de der | G2: s | H2: s | I2: cm | J2: m/s | K2: m/s2 | M2: ruw | N2: gecorr. | O2: wielrot | P2: cm
A3: 0.09 | B3: 53 | C3: 0 | G3: =I17 -> 0.668 | H3: =G3-$G$3 -> 0 | I3: 0 | J3: 0 | K3: 0 | M3: =VLOOKUP(G3,$A$3:$C$362,3) -> 1 | N3: =M3-$M$3 -> 0 | O3: =N3/16 -> 0 | P3: =O3*$O$8 -> 0
A4: 0.11 | B4: 52 | C4: 0 | D4: =B4-B3 -> -1 | G4: =I28 -> 1.880434783 | H4: =G4-$G$3 -> 1.212434783 | I4: 25 | J4: =I4/(G4-G3)/100 -> 0.2061966578 | K4: =(J4-K3)/H4 -> 0.1700682468 | M4: =VLOOKUP(G4,$A$3:$C$362,3) -> 30 | N4: =M4-$M$3 -> 29 | O4: =N4/16 -> 1.8125 | P4: =O4*$O$8 -> 24.48478774
A5: 0.12 | B5: 53 | C5: 0 | D5: =B5-B4 -> 1 | E5: =D5-D4 -> 2 | G5: =I38 -> 2.478571429 | H5: =G5-$G$3 -> 1.810571429 | I5: 50 | J5: =I5/(G5-G4)/100 -> 0.8359293873 | K5: =(J5-K4)/H5 -> 0.3677629781 | M5: 60 | N5: 59 | O5: 3.6875 | P5: 49.81387851
A6: 0.14 | B6: 53 | C6: 0 | D6: 0 | E6: =D6-D5 -> -1 | G6: =I48 -> 2.956315789 | H6: =G6-$G$3 -> 2.288315789 | I6: 75 | J6: =I6/(G6-G5)/100 -> 1.569877243 | K6: =(J6-K5)/H6 -> 0.5253270856 | M6: 90 | N6: 89 | O6: 5.5625 | P6: 75.14296928
A7: 0.16 | B7: 53 | C7: 0 | D7: 0 | E7: 0 | G7: =I58 -> 3.36875 | H7: =G7-$G$3 -> 2.70075 | I7: 100 | J7: =I7/(G7-G6)/100 -> 2.424629127 | K7: =(J7-K6)/H7 -> 0.7032498535 | M7: 119 | N7: 118 | O7: 7.375 | P7: 99.62775703
A8: 0.18 | B8: 53 | C8: 0 | D8: 0 | E8: 0 | M8: Diameter = | O8: =2*PI()*4.3/2 -> 13.50884841
A9: 0.2 | B9: 52 | C9: 0 | D9: -1 | E9: -1 | G9: tijd | H9: waarde | I9: 1st der | J9: 2nd der
A10: 0.21 | B10: 53 | C10: 0 | D10: 1 | E10: 2 | G10: 0.64 | H10: 52 | L10: 0.64 | M10: 53 | N10: 1 | O10: 0 | P10: 0
A11: 0.23 | B11: 53 | C11: 0 | D11: 0 | E11: -1 | I11: =H12-H10 -> 0 | L11: 0.66 | M11: 52 | N11: 1 | O11: -1 | P11: -1
A12: 0.25 | B12: 53 | C12: 0 | D12: 0 | E12: 0 | G12: 0.66 | H12: 52 | J12: =I13-I11 -> -2 | L12: 0.67 | M12: 50 | N12: 1 | O12: -2 | P12: -1
A13: 0.27 | B13: 53 | C13: 0 | D13: 0 | E13: 0 | I13: =H14-H12 -> -2 | L13: 0.69 | M13: 45 | N13: 1 | O13: -5 | P13: -3
A14: 0.28 | B14: 53 | C14: 0 | D14: 0 | E14: 0 | G14: 0.67 | H14: 50 | J14: =I15-I13 -> -3 | L14: 0.71 | M14: 41 | N14: 1 | O14: -4 | P14: 1
A15: 0.3 | B15: 53 | C15: 0 | D15: 0 | E15: 0 | I15: =H16-H14 -> -5 | L15: 0.73 | M15: 39 | N15: 1 | O15: -2 | P15: 2
A16: 0.32 | B16: 53 | C16: 0 | D16: 0 | E16: 0 | G16: 0.69 | H16: 45 | L16: 0.75 | M16: 39 | N16: 2 | O16: 0 | P16: 2
A17: 0.34 | B17: 52 | C17: 0 | D17: -1 | E17: -1 | I17: =G12+(G12-G10)*ABS(J12)/(ABS(J12)+ABS(J14)) -> 0.668 | J17: s | N17: 2 | O17: -1 | P17: 2
A18: 0.35 | B18: 52 | C18: 0 | D18: 0 | E18: 1 | N18: 2 | O18: 0 | P18: 1
A19: 0.37 | B19: 53 | C19: 0 | D19: 1 | E19: 1
A20: 0.39 | B20: 53 | C20: 0 | D20: 0 | E20: -1 | G20: tijd | H20: waarde | I20: 1st der | J20: 2nd der | L20: 1.83 | M20: 53 | N20: 29 | O20: 1 | P20: 1
A21: 0.41 | B21: 53 | C21: 0 | D21: 0 | E21: 0 | G21: 1.85 | H21: 54 | L21: 1.85 | M21: 54 | N21: 30 | O21: 1 | P21: 0
A22: 0.43 | B22: 53 | C22: 0 | D22: 0 | E22: 0 | I22: =H23-H21 -> -1 | L22: 1.87 | M22: 53 | N22: 30 | O22: -1 | P22: -2
A23: 0.45 | B23: 52 | C23: 0 | D23: -1 | E23: -1 | G23: 1.87 | H23: 53 | J23: =I24-I22 -> -12 | L23: 1.89 | M23: 40 | N23: 31 | O23: -13 | P23: -12
A24: 0.46 | B24: 53 | C24: 0 | D24: 1 | E24: 2 | I24: =H25-H23 -> -13 | L24: 1.9 | M24: 38 | N24: 32 | O24: -2 | P24: 11
A25: 0.48 | B25: 53 | C25: 0 | D25: 0 | E25: -1 | G25: 1.89 | H25: 40 | J25: =I26-I24 -> 11 | L25: 1.92 | M25: 50 | N25: 33 | O25: 12 | P25: 14
A26: 0.5 | B26: 53 | C26: 0 | D26: 0 | E26: 0 | I26: =H27-H25 -> -2 | L26: 1.94 | M26: 54 | N26: 34 | O26: 4 | P26: -8
A27: 0.52 | B27: 52 | C27: 0 | D27: -1 | E27: -1 | G27: 1.9 | H27: 38 | L27: 1.96 | M27: 53 | N27: 34 | O27: -1 | P27: -5
A28: 0.53 | B28: 52 | C28: 0 | D28: 0 | E28: 1 | H28: t = | I28: =G23+(G23-G21)*ABS(J23)/(ABS(J23)+ABS(J25)) -> 1.880434783 | J28: s | N28: 34 | O28: =M28-M27 -> -53 | P28: =O28-O27 -> -52
A29: 0.55 | B29: 53 | C29: 0 | D29: 1 | E29: 1
A30: 0.57 | B30: 52 | C30: 0 | D30: -1 | E30: -2 | G30: tijd | H30: waarde | I30: 1st der | J30: 2nd der | L30: 2.45 | M30: 52 | N30: 59 | O30: -1 | P30: -2
A31: 0.59 | B31: 52 | C31: 0 | D31: 0 | E31: 1 | G31: 2.45 | H31: 52 | L31: 2.47 | M31: 51 | N31: 60 | O31: -1 | P31: 0
A32: 0.6 | B32: 53 | C32: 0 | D32: 1 | E32: 1 | I32: =H33-H31 -> -1 | L32: 2.49 | M32: 38 | N32: 61 | O32: -13 | P32: -12
A33: 0.62 | B33: 53 | C33: 1 | D33: 0 | E33: -1 | G33: 2.47 | H33: 51 | J33: =I34-I32 -> -12 | L33: 2.51 | M33: 41 | N33: 62 | O33: 3 | P33: 16
A34: 0.64 | B34: 53 | C34: 1 | D34: 0 | E34: 0 | I34: =H35-H33 -> -13 | L34: 2.53 | M34: 52 | N34: 63 | O34: 11 | P34: 8
A35: 0.66 | B35: 52 | C35: 1 | D35: -1 | E35: -1 | G35: 2.49 | H35: 38 | J35: =I36-I34 -> 16 | L35: 2.54 | M35: 51 | N35: 64 | O35: -1 | P35: -12
A36: 0.67 | B36: 50 | C36: 1 | D36: -2 | E36: -1 | I36: =H37-H35 -> 3 | L36: 2.56 | M36: 52 | N36: 65 | O36: 1 | P36: 2
A37: 0.69 | B37: 45 | C37: 1 | D37: -5 | E37: -3 | G37: 2.51 | H37: 41 | L37: 2.58 | M37: 53 | N37: 66 | O37: 1 | P37: 0
A38: 0.71 | B38: 41 | C38: 1 | D38: -4 | E38: 1 | H38: t = | I38: =G33+(G33-G31)*ABS(J33)/(ABS(J33)+ABS(J35)) -> 2.478571429 | J38: s | N38: 0 | O38: -1
A39: 0.73 | B39: 39 | C39: 1 | D39: -2 | E39: 2
A40: 0.75 | B40: 39 | C40: 2 | D40: 0 | E40: 2 | G40: tijd | H40: waarde | I40: 1st der | J40: 2nd der | L40: 2.9 | M40: 53 | N40: 86 | O40: 1 | P40: 0
A41: 0.77 | B41: 38 | C41: 2 | D41: -1 | E41: -1 | G41: 2.94 | H41: 51 | L41: 2.92 | M41: 52 | N41: 87 | O41: -1 | P41: -2
A42: 0.78 | B42: 39 | C42: 2 | D42: 1 | E42: 2 | I42: =H43-H41 -> 1 | L42: 2.94 | M42: 51 | N42: 88 | O42: -1 | P42: 0
A43: 0.8 | B43: 40 | C43: 2 | D43: 1 | E43: 0 | G43: 2.95 | H43: 52 | J43: =I44-I42 -> -12 | L43: 2.95 | M43: 52 | N43: 90 | O43: 1 | P43: 2
A44: 0.82 | B44: 42 | C44: 2 | D44: 2 | E44: 1 | I44: =H45-H43 -> -11 | L44: 2.97 | M44: 41 | N44: 91 | O44: -11 | P44: -12
A45: 0.84 | B45: 47 | C45: 3 | D45: 5 | E45: 3 | G45: 2.97 | H45: 41 | J45: =I46-I44 -> 7 | L45: 2.99 | M45: 37 | N45: 92 | O45: -4 | P45: 7
A46: 0.85 | B46: 53 | C46: 3 | D46: 6 | E46: 1 | I46: =H47-H45 -> -4 | L46: 3.01 | M46: 51 | N46: 93 | O46: 14 | P46: 18
A47: 0.87 | B47: 54 | C47: 3 | D47: 1 | E47: -5 | G47: 2.99 | H47: 37 | L47: 3.03 | M47: 52 | N47: 94 | O47: 1 | P47: -13
A48: 0.89 | B48: 54 | C48: 3 | D48: 0 | E48: -1 | H48: t = | I48: =G43+(G43-G41)*ABS(J43)/(ABS(J43)+ABS(J45)) -> 2.956315789 | J48: s
A49: 0.91 | B49: 53 | C49: 4 | D49: -1 | E49: -1
A50: 0.92 | B50: 53 | C50: 4 | D50: 0 | E50: 1 | G50: tijd | H50: waarde | I50: 1st der | J50: 2nd der | L50: 3.35 | M50: 52 | N50: 118 | O50: 1 | P50: 2
A51: 0.94 | B51: 53 | C51: 4 | D51: 0 | E51: 0 | G51: 3.35 | H51: 52 | L51: 3.36 | M51: 52 | N51: 119 | O51: 0 | P51: -1
A52: 0.96 | B52: 54 | C52: 5 | D52: 1 | E52: 1 | I52: =H53-H51 -> 0 | L52: 3.38 | M52: 45 | N52: 120 | O52: -7 | P52: -7
A53: 0.98 | B53: 53 | C53: 5 | D53: -1 | E53: -2 | G53: 3.36 | H53: 52 | J53: =I54-I52 -> -7 | L53: 3.4 | M53: 37 | N53: 122 | O53: -8 | P53: -1
A54: 1 | B54: 53 | C54: 5 | D54: 0 | E54: 1 | I54: =H55-H53 -> -7 | L54: 3.42 | M54: 51 | N54: 123 | O54: 14 | P54: 22
A55: 1.01 | B55: 54 | C55: 6 | D55: 1 | E55: 1 | G55: 3.38 | H55: 45 | J55: =I56-I54 -> -1 | L55: 3.43 | M55: 50 | N55: 125 | O55: -1 | P55: -15
A56: 1.03 | B56: 54 | C56: 6 | D56: 0 | E56: -1 | I56: =H57-H55 -> -8 | L56: 3.45 | M56: 41 | N56: 126 | O56: -9 | P56: -8
A57: 1.05 | B57: 54 | C57: 6 | D57: 0 | E57: 0 | G57: 3.4 | H57: 37
A58: 1.07 | B58: 54 | C58: 6 | D58: 0 | E58: 0 | H58: t = | I58: =G53+(G53-G51)*ABS(J53)/(ABS(J53)+ABS(J55)) -> 3.36875 | J58: s
A59: 1.08 | B59: 54 | C59: 7 | D59: 0 | E59: 0
A60: 1.1 | B60: 54 | C60: 7 | D60: 0 | E60: 0
A61: 1.12 | B61: 53 | C61: 8 | D61: -1 | E61: -1
A62: 1.14 | B62: 53 | C62: 8 | D62: 0 | E62: 1
A63: 1.16 | B63: 53 | C63: 8 | D63: 0 | E63: 0
A64: 1.17 | B64: 53 | C64: 9 | D64: 0 | E64: 0
A65: 1.19 | B65: 53 | C65: 9 | D65: 0 | E65: 0
A66: 1.21 | B66: 54 | C66: 10 | D66: 1 | E66: 1
A67: 1.23 | B67: 54 | C67: 10 | D67: 0 | E67: -1
A68: 1.25 | B68: 54 | C68: 10 | D68: 0 | E68: 0
A69: 1.26 | B69: 54 | C69: 11 | D69: =B69-B68 -> 0 | E69: 0
A70: 1.28 | B70: 54 | C70: 11 | D70: 0 | E70: =D70-D69 -> 0
A71: 1.3 | B71: 53 | C71: 12 | D71: -1 | E71: -1
A72: 1.32 | B72: 53 | C72: 12 | D72: 0 | E72: 1
A73: 1.33 | B73: 53 | C73: 13 | D73: 0 | E73: 0
A74: 1.35 | B74: 53 | C74: 13 | D74: 0 | E74: 0
A75: 1.37 | B75: 54 | C75: 14 | D75: 1 | E75: 1
A76: 1.39 | B76: 54 | C76: 14 | D76: 0 | E76: -1
A77: 1.4 | B77: 54 | C77: 14 | D77: 0 | E77: 0
A78: 1.42 | B78: 54 | C78: 15 | D78: 0 | E78: 0
A79: 1.44 | B79: 54 | C79: 16 | D79: 0 | E79: 0
A80: 1.46 | B80: 53 | C80: 16 | D80: -1 | E80: -1
A81: 1.48 | B81: 53 | C81: 17 | D81: 0 | E81: 1
A82: 1.49 | B82: 53 | C82: 17 | D82: 0 | E82: 0
A83: 1.51 | B83: 54 | C83: 18 | D83: 1 | E83: 1
A84: 1.53 | B84: 54 | C84: 18 | D84: 0 | E84: -1
A85: 1.55 | B85: 54 | C85: 19 | D85: 0 | E85: 0
A86: 1.57 | B86: 53 | C86: 19 | D86: -1 | E86: -1
A87: 1.58 | B87: 53 | C87: 20 | D87: 0 | E87: 1
A88: 1.6 | B88: 53 | C88: 21 | D88: 0 | E88: 0
A89: 1.62 | B89: 53 | C89: 21 | D89: 0 | E89: 0
A90: 1.64 | B90: 53 | C90: 22 | D90: 0 | E90: 0
A91: 1.65 | B91: 54 | C91: 22 | D91: 1 | E91: 1
A92: 1.67 | B92: 54 | C92: 23 | D92: 0 | E92: -1
A93: 1.69 | B93: 53 | C93: 24 | D93: -1 | E93: -1
A94: 1.71 | B94: 52 | C94: 25 | D94: -1 | E94: 0
A95: 1.73 | B95: 53 | C95: 25 | D95: 1 | E95: 2
A96: 1.74 | B96: 54 | C96: 26 | D96: 1 | E96: 0
A97: 1.76 | B97: 54 | C97: 26 | D97: 0 | E97: -1
A98: 1.78 | B98: 54 | C98: 27 | D98: 0 | E98: 0
A99: 1.8 | B99: 52 | C99: 28 | D99: -2 | E99: -2
A100: 1.82 | B100: 52 | C100: 29 | D100: 0 | E100: 2
A101: 1.83 | B101: 53 | C101: 29 | D101: 1 | E101: 1
A102: 1.85 | B102: 54 | C102: 30 | D102: 1 | E102: 0
A103: 1.87 | B103: 53 | C103: 30 | D103: -1 | E103: -2
A104: 1.89 | B104: 40 | C104: 31 | D104: -13 | E104: -12
A105: 1.9 | B105: 38 | C105: 32 | D105: -2 | E105: 11
A106: 1.92 | B106: 50 | C106: 33 | D106: 12 | E106: 14
A107: 1.94 | B107: 54 | C107: 34 | D107: 4 | E107: -8
A108: 1.96 | B108: 53 | C108: 34 | D108: -1 | E108: -5
A109: 1.97 | B109: 53 | C109: 35 | D109: 0 | E109: 1
A110: 1.99 | B110: 52 | C110: 36 | D110: -1 | E110: -1
A111: 2.01 | B111: 53 | C111: 37 | D111: 1 | E111: 2
A112: 2.03 | B112: 53 | C112: 38 | D112: 0 | E112: -1
A113: 2.05 | B113: 53 | C113: 38 | D113: 0 | E113: 0
A114: 2.06 | B114: 53 | C114: 39 | D114: 0 | E114: 0
A115: 2.08 | B115: 52 | C115: 40 | D115: -1 | E115: -1
A116: 2.1 | B116: 53 | C116: 41 | D116: 1 | E116: 2
A117: 2.12 | B117: 53 | C117: 42 | D117: 0 | E117: -1
A118: 2.14 | B118: 53 | C118: 42 | D118: 0 | E118: 0
A119: 2.15 | B119: 53 | C119: 43 | D119: 0 | E119: 0
A120: 2.17 | B120: 52 | C120: 44 | D120: -1 | E120: -1
A121: 2.19 | B121: 52 | C121: 45 | D121: 0 | E121: 1
A122: 2.21 | B122: 53 | C122: 46 | D122: 1 | E122: 1
A123: 2.22 | B123: 53 | C123: 47 | D123: 0 | E123: -1
A124: 2.24 | B124: 52 | C124: 48 | D124: -1 | E124: -1
A125: 2.26 | B125: 52 | C125: 49 | D125: 0 | E125: 1
A126: 2.28 | B126: 52 | C126: 50 | D126: 0 | E126: 0
A127: 2.3 | B127: 53 | C127: 50 | D127: 1 | E127: 1
A128: 2.31 | B128: 53 | C128: 51 | D128: 0 | E128: -1
A129: 2.33 | B129: 52 | C129: 52 | D129: -1 | E129: -1
A130: 2.35 | B130: 52 | C130: 53 | D130: 0 | E130: 1
A131: 2.37 | B131: 53 | C131: 54 | D131: 1 | E131: 1
A132: 2.38 | B132: 53 | C132: 55 | D132: 0 | E132: -1
A133: 2.4 | B133: 52 | C133: 56 | D133: =B133-B132 -> -1 | E133: -1
A134: 2.42 | B134: 52 | C134: 57 | D134: 0 | E134: =D134-D133 -> 1
A135: 2.44 | B135: 53 | C135: 58 | D135: 1 | E135: 1
A136: 2.45 | B136: 52 | C136: 59 | D136: -1 | E136: -2
A137: 2.47 | B137: 51 | C137: 60 | D137: -1 | E137: 0
A138: 2.49 | B138: 38 | C138: 61 | D138: -13 | E138: -12
A139: 2.51 | B139: 41 | C139: 62 | D139: 3 | E139: 16
A140: 2.53 | B140: 52 | C140: 63 | D140: 11 | E140: 8
A141: 2.54 | B141: 51 | C141: 64 | D141: -1 | E141: -12
A142: 2.56 | B142: 52 | C142: 65 | D142: 1 | E142: 2
A143: 2.58 | B143: 53 | C143: 66 | D143: 1 | E143: 0
A144: 2.6 | B144: 52 | C144: 67 | D144: -1 | E144: -2
A145: 2.62 | B145: 51 | C145: 68 | D145: -1 | E145: 0
A146: 2.63 | B146: 52 | C146: 70 | D146: 1 | E146: 2
A147: 2.65 | B147: 53 | C147: 70 | D147: 1 | E147: 0
A148: 2.67 | B148: 52 | C148: 71 | D148: -1 | E148: -2
A149: 2.69 | B149: 51 | C149: 73 | D149: -1 | E149: 0
A150: 2.7 | B150: 53 | C150: 74 | D150: 2 | E150: 3
A151: 2.72 | B151: 53 | C151: 75 | D151: 0 | E151: -2
A152: 2.74 | B152: 51 | C152: 76 | D152: -2 | E152: -2
A153: 2.76 | B153: 52 | C153: 77 | D153: 1 | E153: 3
A154: 2.78 | B154: 52 | C154: 78 | D154: 0 | E154: -1
A155: 2.79 | B155: 52 | C155: 79 | D155: 0 | E155: 0
A156: 2.81 | B156: 51 | C156: 80 | D156: -1 | E156: -1
A157: 2.83 | B157: 52 | C157: 82 | D157: 1 | E157: 2
A158: 2.85 | B158: 52 | C158: 82 | D158: 0 | E158: -1
A159: 2.86 | B159: 51 | C159: 84 | D159: -1 | E159: -1
A160: 2.88 | B160: 52 | C160: 85 | D160: 1 | E160: 2
A161: 2.9 | B161: 53 | C161: 86 | D161: 1 | E161: 0
A162: 2.92 | B162: 52 | C162: 87 | D162: -1 | E162: -2
A163: 2.94 | B163: 51 | C163: 88 | D163: -1 | E163: 0
A164: 2.95 | B164: 52 | C164: 90 | D164: 1 | E164: 2
A165: 2.97 | B165: 41 | C165: 91 | D165: -11 | E165: -12
A166: 2.99 | B166: 37 | C166: 92 | D166: -4 | E166: 7
A167: 3.01 | B167: 51 | C167: 93 | D167: 14 | E167: 18
A168: 3.03 | B168: 52 | C168: 94 | D168: 1 | E168: -13
A169: 3.04 | B169: 52 | C169: 96 | D169: 0 | E169: -1
A170: 3.06 | B170: 51 | C170: 97 | D170: -1 | E170: -1
A171: 3.08 | B171: 52 | C171: 98 | D171: 1 | E171: 2
A172: 3.1 | B172: 52 | C172: 99 | D172: 0 | E172: -1
A173: 3.11 | B173: 52 | C173: 101 | D173: 0 | E173: 0
A174: 3.13 | B174: 52 | C174: 102 | D174: 0 | E174: 0
A175: 3.15 | B175: 52 | C175: 103 | D175: 0 | E175: 0
A176: 3.17 | B176: 51 | C176: 104 | D176: -1 | E176: -1
A177: 3.18 | B177: 52 | C177: 106 | D177: 1 | E177: 2
A178: 3.2 | B178: 52 | C178: 107 | D178: 0 | E178: -1
A179: 3.22 | B179: 51 | C179: 108 | D179: -1 | E179: -1
A180: 3.24 | B180: 51 | C180: 110 | D180: 0 | E180: 1
A181: 3.26 | B181: 52 | C181: 111 | D181: 1 | E181: 1
A182: 3.27 | B182: 50 | C182: 112 | D182: -2 | E182: -3
A183: 3.29 | B183: 52 | C183: 114 | D183: 2 | E183: 4
A184: 3.31 | B184: 52 | C184: 115 | D184: 0 | E184: -2
A185: 3.33 | B185: 51 | C185: 116 | D185: -1 | E185: -1
A186: 3.35 | B186: 52 | C186: 118 | D186: 1 | E186: 2
A187: 3.36 | B187: 52 | C187: 119 | D187: 0 | E187: -1
A188: 3.38 | B188: 45 | C188: 120 | D188: -7 | E188: -7
A189: 3.4 | B189: 37 | C189: 122 | D189: -8 | E189: -1
A190: 3.42 | B190: 51 | C190: 123 | D190: 14 | E190: 22
A191: 3.43 | B191: 50 | C191: 125 | D191: -1 | E191: -15
A192: 3.45 | B192: 41 | C192: 126 | D192: -9 | E192: -8
A193: 3.47 | B193: 39 | C193: 127 | D193: -2 | E193: 7
A194: 3.49 | B194: 39 | C194: 128 | D194: 0 | E194: 2
A195: 3.5 | B195: 42 | C195: 130 | D195: 3 | E195: 3
A196: 3.52 | B196: 46 | C196: 130 | D196: 4 | E196: 1
A197: 3.54 | B197: 45 | C197: 132 | D197: =B197-B196 -> -1 | E197: -5
A198: 3.56 | B198: 44 | C198: 134 | D198: -1 | E198: =D198-D197 -> 0
A199: 3.58 | B199: 46 | C199: 134 | D199: 2 | E199: 3
A200: 3.59 | B200: 46 | C200: 136 | D200: 0 | E200: -2
... 136 more rows

Sheet 220320092024_2
A1: s | B1: RAW | G1: tijdstip | H1: genormaliseerd | I1: afstand | J1: snelheid | K1: versnelling | M1: rotatiesensorwaarde | P1: afstand
A2: Tijd | B2: Licht | C2: Rotatie | D2: 1ste der | E2: 2de der | G2: s | H2: s | I2: cm | J2: m/s | K2: m/s2 | M2: ruw | N2: gecorr. | O2: wielrot | P2: cm
A3: 0.09 | B3: 54 | C3: 0 | G3: =I17 -> 0.4675 | H3: =G3-$G$3 -> 0 | I3: 0 | J3: 0 | K3: 0 | M3: =VLOOKUP(G3,$A$3:$C$362,3) -> 1 | N3: =M3-$M$3 -> 0 | O3: =N3/16 -> 0 | P3: =O3*$O$8 -> 0
A4: 0.1 | B4: 54 | C4: 0 | D4: =B4-B3 -> 0 | G4: =I28 -> 1.74 | H4: =G4-$G$3 -> 1.2725 | I4: 25 | J4: =I4/(G4-G3)/100 -> 0.1964636542 | K4: =(J4-K3)/H4 -> 0.1543918697 | M4: =VLOOKUP(G4,$A$3:$C$362,3) -> 32 | N4: =M4-$M$3 -> 31 | O4: =N4/16 -> 1.9375 | P4: =O4*$O$8 -> 26.1733938
A5: 0.12 | B5: 54 | C5: 0 | D5: =B5-B4 -> 0 | E5: =D5-D4 -> 0 | G5: =I38 -> 2.34037037 | H5: =G5-$G$3 -> 1.87287037 | I5: 50 | J5: =I5/(G5-G4)/100 -> 0.8328192474 | K5: =(J5-K4)/H5 -> 0.3622393671 | M5: 60 | N5: 59 | O5: 3.6875 | P5: 49.81387851
A6: 0.14 | B6: 54 | C6: 0 | D6: 0 | E6: =D6-D5 -> 0 | G6: =I48 -> 2.821428571 | H6: =G6-$G$3 -> 2.353928571 | I6: 75 | J6: =I6/(G6-G5)/100 -> 1.559062912 | K6: =(J6-K5)/H6 -> 0.508436645 | M6: 90 | N6: 89 | O6: 5.5625 | P6: 75.14296928
A7: 0.16 | B7: 54 | C7: 0 | D7: 0 | E7: 0 | G7: =I58 -> 3.247142857 | H7: =G7-$G$3 -> 2.779642857 | I7: 100 | J7: =I7/(G7-G6)/100 -> 2.348993289 | K7: =(J7-K6)/H7 -> 0.6621558014 | M7: 120 | N7: 119 | O7: 7.4375 | P7: 100.4720601
A8: 0.18 | B8: 54 | C8: 0 | D8: 0 | E8: 0 | M8: Diameter = | O8: =2*PI()*4.3/2 -> 13.50884841
A9: 0.19 | B9: 54 | C9: 1 | D9: 0 | E9: 0 | G9: tijd | H9: waarde | I9: 1st der | J9: 2nd der
A10: 0.21 | B10: 54 | C10: 1 | D10: 0 | E10: 0 | G10: 0.45 | H10: 51 | L10: 0.41 | M10: 53 | N10: 1 | O10: 0 | P10: 1
A11: 0.23 | B11: 54 | C11: 1 | D11: 0 | E11: 0 | I11: =H12-H10 -> -2 | L11: 0.43 | M11: 53 | N11: 1 | O11: 0 | P11: 0
A12: 0.25 | B12: 54 | C12: 1 | D12: 0 | E12: 0 | G12: 0.46 | H12: 49 | J12: =I13-I11 -> -3 | L12: 0.45 | M12: 51 | N12: 1 | O12: -2 | P12: -2
A13: 0.27 | B13: 54 | C13: 1 | D13: 0 | E13: 0 | I13: =H14-H12 -> -5 | L13: 0.46 | M13: 49 | N13: 1 | O13: -2 | P13: 0
A14: 0.28 | B14: 54 | C14: 1 | D14: 0 | E14: 0 | G14: 0.48 | H14: 44 | J14: =I15-I13 -> 1 | L14: 0.48 | M14: 44 | N14: 1 | O14: -5 | P14: -3
A15: 0.3 | B15: 54 | C15: 1 | D15: 0 | E15: 0 | I15: =H16-H14 -> -4 | L15: 0.5 | M15: 40 | N15: 2 | O15: -4 | P15: 1
A16: 0.32 | B16: 54 | C16: 1 | D16: 0 | E16: 0 | G16: 0.5 | H16: 40 | L16: 0.52 | M16: 38 | N16: 2 | O16: -2 | P16: 2
A17: 0.34 | B17: 54 | C17: 1 | D17: 0 | E17: 0 | I17: =G12+(G12-G10)*ABS(J12)/(ABS(J12)+ABS(J14)) -> 0.4675 | J17: s | L17: 0.53 | M17: 39 | N17: 2 | O17: 1 | P17: 3
A18: 0.35 | B18: 54 | C18: 1 | D18: 0 | E18: 0 | L18: 0.55 | M18: 39 | N18: 2 | O18: 0 | P18: -1
A19: 0.37 | B19: 54 | C19: 1 | D19: 0 | E19: 0 | L19: 0.57 | M19: 39 | N19: 2 | O19: 0 | P19: 0
A20: 0.39 | B20: 53 | C20: 1 | D20: -1 | E20: -1 | G20: tijd | H20: waarde | I20: 1st der | J20: 2nd der | L20: 1.69 | M20: 54 | N20: 29 | O20: 0 | P20: 0
A21: 0.41 | B21: 53 | C21: 1 | D21: 0 | E21: 1 | G21: 1.71 | H21: 53 | L21: 1.71 | M21: 53 | N21: 30 | O21: -1 | P21: -1
A22: 0.43 | B22: 53 | C22: 1 | D22: 0 | E22: 0 | I22: =H23-H21 -> 0 | L22: 1.73 | M22: 53 | N22: 31 | O22: 0 | P22: 1
A23: 0.45 | B23: 51 | C23: 1 | D23: -2 | E23: -2 | G23: 1.73 | H23: 53 | J23: =I24-I22 -> -13 | L23: 1.74 | M23: 40 | N23: 32 | O23: -13 | P23: -13
A24: 0.46 | B24: 49 | C24: 1 | D24: -2 | E24: 0 | I24: =H25-H23 -> -13 | L24: 1.76 | M24: 40 | N24: 32 | O24: 0 | P24: 13
A25: 0.48 | B25: 44 | C25: 1 | D25: -5 | E25: -3 | G25: 1.74 | H25: 40 | J25: =I26-I24 -> 13 | L25: 1.78 | M25: 50 | N25: 33 | O25: 10 | P25: 10
A26: 0.5 | B26: 40 | C26: 2 | D26: -4 | E26: 1 | I26: =H27-H25 -> 0 | L26: 1.8 | M26: 53 | N26: 34 | O26: 3 | P26: -7
A27: 0.52 | B27: 38 | C27: 2 | D27: -2 | E27: 2 | G27: 1.76 | H27: 40 | L27: 1.81 | M27: 54 | N27: 35 | O27: 1 | P27: -2
A28: 0.53 | B28: 39 | C28: 2 | D28: 1 | E28: 3 | H28: t = | I28: =G23+(G23-G21)*ABS(J23)/(ABS(J23)+ABS(J25)) -> 1.74 | J28: s | N28: 34 | O28: =M28-M27 -> -54 | P28: =O28-O27 -> -55
A29: 0.55 | B29: 39 | C29: 2 | D29: 0 | E29: -1
A30: 0.57 | B30: 39 | C30: 2 | D30: 0 | E30: 0 | G30: tijd | H30: waarde | I30: 1st der | J30: 2nd der | L30: 2.31 | M30: 53 | N30: 59 | O30: 1 | P30: 2
A31: 0.59 | B31: 39 | C31: 2 | D31: 0 | E31: 0 | G31: 2.31 | H31: 53 | L31: 2.33 | M31: 53 | N31: 60 | O31: 0 | P31: -1
A32: 0.6 | B32: 39 | C32: 3 | D32: 0 | E32: 0 | I32: =H33-H31 -> 0 | L32: 2.35 | M32: 39 | N32: 61 | O32: -14 | P32: -14
A33: 0.62 | B33: 41 | C33: 3 | D33: 2 | E33: 2 | G33: 2.33 | H33: 53 | J33: =I34-I32 -> -14 | L33: 2.37 | M33: 38 | N33: 62 | O33: -1 | P33: 13
A34: 0.64 | B34: 45 | C34: 3 | D34: 4 | E34: 2 | I34: =H35-H33 -> -14 | L34: 2.38 | M34: 52 | N34: 64 | O34: 14 | P34: 15
A35: 0.66 | B35: 51 | C35: 3 | D35: 6 | E35: 2 | G35: 2.35 | H35: 39 | J35: =I36-I34 -> 13 | L35: 2.4 | M35: 53 | N35: 64 | O35: 1 | P35: -13
A36: 0.67 | B36: 53 | C36: 4 | D36: 2 | E36: -4 | I36: =H37-H35 -> -1 | L36: 2.42 | M36: 53 | N36: 65 | O36: 0 | P36: -1
A37: 0.69 | B37: 54 | C37: 4 | D37: 1 | E37: -1 | G37: 2.37 | H37: 38 | L37: 2.44 | M37: 52 | N37: 66 | O37: -1 | P37: -1
A38: 0.71 | B38: 55 | C38: 4 | D38: 1 | E38: 0 | H38: t = | I38: =G33+(G33-G31)*ABS(J33)/(ABS(J33)+ABS(J35)) -> 2.34037037 | J38: s | N38: 0 | O38: -1
A39: 0.73 | B39: 54 | C39: 4 | D39: -1 | E39: -2
A40: 0.75 | B40: 54 | C40: 4 | D40: 0 | E40: 1 | G40: tijd | H40: waarde | I40: 1st der | J40: 2nd der | L40: 2.79 | M40: 53 | N40: 89 | O40: 0 | P40: -1
A41: 0.76 | B41: 55 | C41: 4 | D41: 1 | E41: 1 | G41: 2.79 | H41: 53 | L41: 2.81 | M41: 52 | N41: 90 | O41: -1 | P41: -1
A42: 0.78 | B42: 55 | C42: 5 | D42: 0 | E42: -1 | I42: =H43-H41 -> -1 | L42: 2.83 | M42: 47 | N42: 91 | O42: -5 | P42: -4
A43: 0.8 | B43: 54 | C43: 5 | D43: -1 | E43: -1 | G43: 2.81 | H43: 52 | J43: =I44-I42 -> -4 | L43: 2.85 | M43: 39 | N43: 92 | O43: -8 | P43: -3
A44: 0.82 | B44: 54 | C44: 5 | D44: 0 | E44: 1 | I44: =H45-H43 -> -5 | L44: 2.86 | M44: 53 | N44: 93 | O44: 14 | P44: 22
A45: 0.84 | B45: 54 | C45: 6 | D45: 0 | E45: 0 | G45: 2.83 | H45: 47 | J45: =I46-I44 -> -3 | L45: 2.88 | M45: 52 | N45: 95 | O45: -1 | P45: -15
A46: 0.85 | B46: 54 | C46: 6 | D46: 0 | E46: 0 | I46: =H47-H45 -> -8 | L46: 2.9 | M46: 53 | N46: 96 | O46: 1 | P46: 2
A47: 0.87 | B47: 53 | C47: 6 | D47: -1 | E47: -1 | G47: 2.85 | H47: 39 | L47: 2.92 | M47: 52 | N47: 97 | O47: -1 | P47: -2
A48: 0.89 | B48: 53 | C48: 6 | D48: 0 | E48: 1 | H48: t = | I48: =G43+(G43-G41)*ABS(J43)/(ABS(J43)+ABS(J45)) -> 2.821428571 | J48: s
A49: 0.91 | B49: 54 | C49: 7 | D49: 1 | E49: 1
A50: 0.92 | B50: 54 | C50: 7 | D50: 0 | E50: -1 | G50: tijd | H50: waarde | I50: 1st der | J50: 2nd der | L50: 3.22 | M50: 51 | N50: 119 | O50: -1 | P50: 0
A51: 0.94 | B51: 55 | C51: 8 | D51: 1 | E51: 1 | G51: 3.22 | H51: 51 | L51: 3.24 | M51: 52 | N51: 120 | O51: 1 | P51: 2
A52: 0.96 | B52: 55 | C52: 8 | D52: 0 | E52: -1 | I52: =H53-H51 -> 1 | L52: 3.25 | M52: 38 | N52: 122 | O52: -14 | P52: -15
A53: 0.98 | B53: 54 | C53: 8 | D53: -1 | E53: -1 | G53: 3.24 | H53: 52 | J53: =I54-I52 -> -15 | L53: 3.27 | M53: 51 | N53: 123 | O53: 13 | P53: 27
A54: 1 | B54: 55 | C54: 8 | D54: 1 | E54: 2 | I54: =H55-H53 -> -14 | L54: 3.29 | M54: 52 | N54: 124 | O54: 1 | P54: -12
A55: 1.01 | B55: 55 | C55: 9 | D55: 0 | E55: -1 | G55: 3.25 | H55: 38 | J55: =I56-I54 -> 27 | L55: 3.31 | M55: 40 | N55: 126 | O55: -12 | P55: -13
A56: 1.03 | B56: 55 | C56: 9 | D56: 0 | E56: 0 | I56: =H57-H55 -> 13 | L56: 3.33 | M56: 39 | N56: 128 | O56: -1 | P56: 11
A57: 1.05 | B57: 53 | C57: 10 | D57: -2 | E57: -2 | G57: 3.27 | H57: 51
A58: 1.07 | B58: 53 | C58: 10 | D58: 0 | E58: 2 | H58: t = | I58: =G53+(G53-G51)*ABS(J53)/(ABS(J53)+ABS(J55)) -> 3.247142857 | J58: s
A59: 1.08 | B59: 54 | C59: 11 | D59: 1 | E59: 1
A60: 1.1 | B60: 54 | C60: 11 | D60: 0 | E60: -1
A61: 1.12 | B61: 54 | C61: 12 | D61: 0 | E61: 0
A62: 1.14 | B62: 54 | C62: 12 | D62: 0 | E62: 0
A63: 1.15 | B63: 55 | C63: 12 | D63: 1 | E63: 1
A64: 1.17 | B64: 55 | C64: 12 | D64: 0 | E64: -1
A65: 1.19 | B65: 54 | C65: 13 | D65: -1 | E65: -1
A66: 1.21 | B66: 54 | C66: 14 | D66: 0 | E66: 1
A67: 1.23 | B67: 53 | C67: 14 | D67: -1 | E67: -1
A68: 1.25 | B68: 54 | C68: 15 | D68: 1 | E68: 2
A69: 1.26 | B69: 54 | C69: 15 | D69: =B69-B68 -> 0 | E69: -1
A70: 1.28 | B70: 54 | C70: 16 | D70: 0 | E70: =D70-D69 -> 0
A71: 1.3 | B71: 54 | C71: 16 | D71: 0 | E71: 0
A72: 1.32 | B72: 54 | C72: 16 | D72: 0 | E72: 0
A73: 1.33 | B73: 54 | C73: 17 | D73: 0 | E73: 0
A74: 1.35 | B74: 55 | C74: 18 | D74: 1 | E74: 1
A75: 1.37 | B75: 53 | C75: 18 | D75: -2 | E75: -3
A76: 1.39 | B76: 54 | C76: 19 | D76: 1 | E76: 3
A77: 1.4 | B77: 54 | C77: 19 | D77: 0 | E77: -1
A78: 1.42 | B78: 54 | C78: 20 | D78: 0 | E78: 0
A79: 1.44 | B79: 54 | C79: 20 | D79: 0 | E79: 0
A80: 1.46 | B80: 54 | C80: 21 | D80: 0 | E80: 0
A81: 1.48 | B81: 53 | C81: 22 | D81: -1 | E81: -1
A82: 1.49 | B82: 53 | C82: 22 | D82: 0 | E82: 1
A83: 1.51 | B83: 54 | C83: 23 | D83: 1 | E83: 1
A84: 1.53 | B84: 54 | C84: 24 | D84: 0 | E84: -1
A85: 1.55 | B85: 54 | C85: 24 | D85: 0 | E85: 0
A86: 1.57 | B86: 54 | C86: 25 | D86: 0 | E86: 0
A87: 1.58 | B87: 54 | C87: 25 | D87: 0 | E87: 0
A88: 1.6 | B88: 53 | C88: 26 | D88: -1 | E88: -1
A89: 1.62 | B89: 53 | C89: 27 | D89: 0 | E89: 1
A90: 1.64 | B90: 53 | C90: 28 | D90: 0 | E90: 0
A91: 1.65 | B91: 54 | C91: 28 | D91: 1 | E91: 1
A92: 1.67 | B92: 54 | C92: 29 | D92: 0 | E92: -1
A93: 1.69 | B93: 54 | C93: 29 | D93: 0 | E93: 0
A94: 1.71 | B94: 53 | C94: 30 | D94: -1 | E94: -1
A95: 1.73 | B95: 53 | C95: 31 | D95: 0 | E95: 1
A96: 1.74 | B96: 40 | C96: 32 | D96: -13 | E96: -13
A97: 1.76 | B97: 40 | C97: 32 | D97: 0 | E97: 13
A98: 1.78 | B98: 50 | C98: 33 | D98: 10 | E98: 10
A99: 1.8 | B99: 53 | C99: 34 | D99: 3 | E99: -7
A100: 1.81 | B100: 54 | C100: 35 | D100: 1 | E100: -2
A101: 1.83 | B101: 54 | C101: 36 | D101: 0 | E101: -1
A102: 1.85 | B102: 54 | C102: 36 | D102: 0 | E102: 0
A103: 1.87 | B103: 54 | C103: 37 | D103: 0 | E103: 0
A104: 1.89 | B104: 53 | C104: 38 | D104: -1 | E104: -1
A105: 1.9 | B105: 53 | C105: 39 | D105: 0 | E105: 1
A106: 1.92 | B106: 53 | C106: 39 | D106: 0 | E106: 0
A107: 1.94 | B107: 54 | C107: 40 | D107: 1 | E107: 1
A108: 1.96 | B108: 54 | C108: 41 | D108: 0 | E108: -1
A109: 1.97 | B109: 53 | C109: 42 | D109: -1 | E109: -1
A110: 1.99 | B110: 53 | C110: 43 | D110: 0 | E110: 1
A111: 2.01 | B111: 54 | C111: 44 | D111: 1 | E111: 1
A112: 2.03 | B112: 54 | C112: 44 | D112: 0 | E112: -1
A113: 2.05 | B113: 54 | C113: 45 | D113: 0 | E113: 0
A114: 2.06 | B114: 53 | C114: 46 | D114: -1 | E114: -1
A115: 2.08 | B115: 53 | C115: 47 | D115: 0 | E115: 1
A116: 2.1 | B116: 54 | C116: 48 | D116: 1 | E116: 1
A117: 2.12 | B117: 53 | C117: 49 | D117: -1 | E117: -2
A118: 2.13 | B118: 53 | C118: 50 | D118: 0 | E118: 1
A119: 2.15 | B119: 53 | C119: 51 | D119: 0 | E119: 0
A120: 2.17 | B120: 53 | C120: 52 | D120: 0 | E120: 0
A121: 2.19 | B121: 53 | C121: 52 | D121: 0 | E121: 0
A122: 2.2 | B122: 54 | C122: 53 | D122: 1 | E122: 1
A123: 2.22 | B123: 53 | C123: 54 | D123: -1 | E123: -2
A124: 2.24 | B124: 54 | C124: 56 | D124: 1 | E124: 2
A125: 2.26 | B125: 54 | C125: 56 | D125: 0 | E125: -1
A126: 2.28 | B126: 53 | C126: 57 | D126: -1 | E126: -1
A127: 2.3 | B127: 52 | C127: 58 | D127: -1 | E127: 0
A128: 2.31 | B128: 53 | C128: 59 | D128: 1 | E128: 2
A129: 2.33 | B129: 53 | C129: 60 | D129: 0 | E129: -1
A130: 2.35 | B130: 39 | C130: 61 | D130: -14 | E130: -14
A131: 2.37 | B131: 38 | C131: 62 | D131: -1 | E131: 13
A132: 2.38 | B132: 52 | C132: 64 | D132: 14 | E132: 15
A133: 2.4 | B133: 53 | C133: 64 | D133: =B133-B132 -> 1 | E133: -13
A134: 2.42 | B134: 53 | C134: 65 | D134: 0 | E134: =D134-D133 -> -1
A135: 2.44 | B135: 52 | C135: 66 | D135: -1 | E135: -1
A136: 2.45 | B136: 53 | C136: 68 | D136: 1 | E136: 2
A137: 2.47 | B137: 53 | C137: 68 | D137: 0 | E137: -1
A138: 2.49 | B138: 53 | C138: 70 | D138: 0 | E138: 0
A139: 2.51 | B139: 52 | C139: 71 | D139: -1 | E139: -1
A140: 2.53 | B140: 53 | C140: 72 | D140: 1 | E140: 2
A141: 2.55 | B141: 53 | C141: 73 | D141: 0 | E141: -1
A142: 2.56 | B142: 52 | C142: 74 | D142: -1 | E142: -1
A143: 2.58 | B143: 53 | C143: 75 | D143: 1 | E143: 2
A144: 2.6 | B144: 53 | C144: 76 | D144: 0 | E144: -1
A145: 2.62 | B145: 53 | C145: 77 | D145: 0 | E145: 0
A146: 2.63 | B146: 52 | C146: 78 | D146: -1 | E146: -1
A147: 2.65 | B147: 52 | C147: 80 | D147: 0 | E147: 1
A148: 2.67 | B148: 53 | C148: 80 | D148: 1 | E148: 1
A149: 2.69 | B149: 53 | C149: 81 | D149: 0 | E149: -1
A150: 2.7 | B150: 53 | C150: 83 | D150: 0 | E150: 0
A151: 2.72 | B151: 53 | C151: 84 | D151: 0 | E151: 0
A152: 2.74 | B152: 53 | C152: 85 | D152: 0 | E152: 0
A153: 2.76 | B153: 52 | C153: 86 | D153: -1 | E153: -1
A154: 2.78 | B154: 53 | C154: 88 | D154: 1 | E154: 2
A155: 2.79 | B155: 53 | C155: 89 | D155: 0 | E155: -1
A156: 2.81 | B156: 52 | C156: 90 | D156: -1 | E156: -1
A157: 2.83 | B157: 47 | C157: 91 | D157: -5 | E157: -4
A158: 2.85 | B158: 39 | C158: 92 | D158: -8 | E158: -3
A159: 2.86 | B159: 53 | C159: 93 | D159: 14 | E159: 22
A160: 2.88 | B160: 52 | C160: 95 | D160: -1 | E160: -15
A161: 2.9 | B161: 53 | C161: 96 | D161: 1 | E161: 2
A162: 2.92 | B162: 52 | C162: 97 | D162: -1 | E162: -2
A163: 2.94 | B163: 52 | C163: 98 | D163: 0 | E163: 1
A164: 2.95 | B164: 52 | C164: 99 | D164: 0 | E164: 0
A165: 2.97 | B165: 53 | C165: 100 | D165: 1 | E165: 1
A166: 2.99 | B166: 51 | C166: 102 | D166: -2 | E166: -3
A167: 3.01 | B167: 52 | C167: 103 | D167: 1 | E167: 3
A168: 3.03 | B168: 53 | C168: 104 | D168: 1 | E168: 0
A169: 3.04 | B169: 52 | C169: 106 | D169: -1 | E169: -2
A170: 3.06 | B170: 52 | C170: 107 | D170: 0 | E170: 1
A171: 3.08 | B171: 52 | C171: 108 | D171: 0 | E171: 0
A172: 3.1 | B172: 52 | C172: 110 | D172: 0 | E172: 0
A173: 3.11 | B173: 52 | C173: 111 | D173: 0 | E173: 0
A174: 3.13 | B174: 53 | C174: 112 | D174: 1 | E174: 1
A175: 3.15 | B175: 52 | C175: 114 | D175: -1 | E175: -2
A176: 3.17 | B176: 52 | C176: 115 | D176: 0 | E176: 1
A177: 3.18 | B177: 53 | C177: 116 | D177: 1 | E177: 1
A178: 3.2 | B178: 52 | C178: 118 | D178: -1 | E178: -2
A179: 3.22 | B179: 51 | C179: 119 | D179: -1 | E179: 0
A180: 3.24 | B180: 52 | C180: 120 | D180: 1 | E180: 2
A181: 3.25 | B181: 38 | C181: 122 | D181: -14 | E181: -15
A182: 3.27 | B182: 51 | C182: 123 | D182: 13 | E182: 27
A183: 3.29 | B183: 52 | C183: 124 | D183: 1 | E183: -12
A184: 3.31 | B184: 40 | C184: 126 | D184: -12 | E184: -13
A185: 3.33 | B185: 39 | C185: 128 | D185: -1 | E185: 11
A186: 3.35 | B186: 41 | C186: 128 | D186: 2 | E186: 3
A187: 3.36 | B187: 42 | C187: 130 | D187: 1 | E187: -1
A188: 3.38 | B188: 46 | C188: 131 | D188: 4 | E188: 3
A189: 3.4 | B189: 47 | C189: 132 | D189: 1 | E189: -3
A190: 3.42 | B190: 45 | C190: 134 | D190: -2 | E190: -3
A191: 3.43 | B191: 45 | C191: 135 | D191: 0 | E191: 2
A192: 3.45 | B192: 48 | C192: 136 | D192: 3 | E192: 3
A193: 3.47 | B193: 47 | C193: 137 | D193: -1 | E193: -4
A194: 3.49 | B194: 47 | C194: 138 | D194: 0 | E194: 1
A195: 3.5 | B195: 48 | C195: 140 | D195: 1 | E195: 1
A196: 3.52 | B196: 48 | C196: 142 | D196: 0 | E196: -1
A197: 3.54 | B197: 48 | C197: 143 | D197: =B197-B196 -> 0 | E197: 0
A198: 3.56 | B198: 48 | C198: 144 | D198: 0 | E198: =D198-D197 -> 0
A199: 3.58 | B199: 48 | C199: 145 | D199: 0 | E199: 0
A200: 3.59 | B200: 47 | C200: 146 | D200: -1 | E200: -1
... 136 more rows

Sheet 220320092024_1
A1: s | B1: RAW | G1: tijdstip | H1: genormaliseerd | I1: afstand | J1: snelheid | K1: versnelling | M1: rotatiesensorwaarde | P1: afstand
A2: Tijd | B2: Licht | C2: Rotatie | D2: 1ste der | E2: 2de der | G2: s | H2: s | I2: cm | J2: m/s | K2: m/s2 | M2: ruw | N2: gecorr. | O2: wielrot | P2: cm
A3: 0.01 | B3: 54 | C3: 0 | G3: =I17 -> 0.76 | H3: =G3-$G$3 -> 0 | I3: 0 | J3: 0 | K3: 0 | M3: =VLOOKUP(G3,$A$3:$C$362,3) -> 1 | N3: =M3-$M$3 -> 0 | O3: =N3/16 -> 0 | P3: =O3*$O$8 -> 0
A4: 0.02 | B4: 53 | C4: 0 | D4: =B4-B3 -> -1 | G4: =I28 -> 2.077777778 | H4: =G4-$G$3 -> 1.317777778 | I4: 25 | J4: =I4/(G4-G3)/100 -> 0.1897133221 | K4: =(J4-K3)/H4 -> 0.1439645783 | M4: =VLOOKUP(G4,$A$3:$C$362,3) -> 31 | N4: =M4-$M$3 -> 30 | O4: =N4/16 -> 1.875 | P4: =O4*$O$8 -> 25.32909077
A5: 0.04 | B5: 53 | C5: 0 | D5: =B5-B4 -> 0 | E5: =D5-D4 -> 1 | G5: =I38 -> 2.667 | H5: =G5-$G$3 -> 1.907 | I5: 50 | J5: =I5/(G5-G4)/100 -> 0.8485762776 | K5: =(J5-K4)/H5 -> 0.3694869949 | M5: 60 | N5: 59 | O5: 3.6875 | P5: 49.81387851
A6: 0.06 | B6: 54 | C6: 0 | D6: 1 | E6: =D6-D5 -> 1 | G6: =I48 -> 3.1248 | H6: =G6-$G$3 -> 2.3648 | I6: 75 | J6: =I6/(G6-G5)/100 -> 1.638269987 | K6: =(J6-K5)/H6 -> 0.5365286671 | M6: 90 | N6: 89 | O6: 5.5625 | P6: 75.14296928
A7: 0.08 | B7: 54 | C7: 0 | D7: 0 | E7: -1 | G7: =I58 -> 3.527692308 | H7: =G7-$G$3 -> 2.767692308 | I7: 100 | J7: =I7/(G7-G6)/100 -> 2.482052849 | K7: =(J7-K6)/H7 -> 0.7029409216 | M7: 119 | N7: 118 | O7: 7.375 | P7: 99.62775703
A8: 0.1 | B8: 54 | C8: 0 | D8: 0 | E8: 0 | M8: Diameter = | O8: =2*PI()*4.3/2 -> 13.50884841
A9: 0.12 | B9: 54 | C9: 0 | D9: 0 | E9: 0 | G9: tijd | H9: waarde | I9: 1st der | J9: 2nd der
A10: 0.13 | B10: 53 | C10: 0 | D10: -1 | E10: -1 | G10: 0.72 | H10: 52 | L10: 0.72 | M10: 52 | N10: 1 | O10: 0 | P10: 0
A11: 0.15 | B11: 54 | C11: 0 | D11: 1 | E11: 2 | I11: =H12-H10 -> 0 | L11: 0.74 | M11: 52 | N11: 1 | O11: 0 | P11: 0
A12: 0.17 | B12: 54 | C12: 0 | D12: 0 | E12: -1 | G12: 0.74 | H12: 52 | J12: =I13-I11 -> -2 | L12: 0.76 | M12: 50 | N12: 1 | O12: -2 | P12: -2
A13: 0.19 | B13: 54 | C13: 0 | D13: 0 | E13: 0 | I13: =H14-H12 -> -2 | L13: 0.77 | M13: 48 | N13: 1 | O13: -2 | P13: 0
A14: 0.2 | B14: 53 | C14: 0 | D14: -1 | E14: -1 | G14: 0.76 | H14: 50 | J14: =I15-I13 -> 0 | L14: 0.79 | M14: 45 | N14: 1 | O14: -3 | P14: -1
A15: 0.22 | B15: 53 | C15: 0 | D15: 0 | E15: 1 | I15: =H16-H14 -> -2 | L15: 0.81 | M15: 42 | N15: 1 | O15: -3 | P15: 0
A16: 0.24 | B16: 54 | C16: 0 | D16: 1 | E16: 1 | G16: 0.77 | H16: 48 | L16: 0.83 | M16: 39 | N16: 2 | O16: -3 | P16: 0
A17: 0.26 | B17: 54 | C17: 0 | D17: 0 | E17: -1 | I17: =G12+(G12-G10)*ABS(J12)/(ABS(J12)+ABS(J14)) -> 0.76 | J17: s | L17: 0.84 | M17: 38 | N17: 2 | O17: -1 | P17: 2
A18: 0.27 | B18: 53 | C18: 0 | D18: -1 | E18: -1 | L18: 0.86 | M18: 38 | N18: 2 | O18: 0 | P18: 1
A19: 0.29 | B19: 53 | C19: 0 | D19: 0 | E19: 1
A20: 0.31 | B20: 54 | C20: 0 | D20: 1 | E20: 1 | G20: tijd | H20: waarde | I20: 1st der | J20: 2nd der | L20: 1.98 | M20: 53 | N20: 27 | O20: =M20-M19 -> 53 | P20: =O20-O19 -> 53
A21: 0.33 | B21: 54 | C21: 0 | D21: 0 | E21: -1 | G21: 2.04 | H21: 53 | L21: 2 | M21: 53 | N21: 28 | O21: 0 | P21: -53
A22: 0.35 | B22: 54 | C22: 0 | D22: 0 | E22: 0 | I22: =H23-H21 -> 0 | L22: 2.02 | M22: 53 | N22: 29 | O22: 0 | P22: 0
A23: 0.37 | B23: 54 | C23: 0 | D23: 0 | E23: 0 | G23: 2.06 | H23: 53 | J23: =I24-I22 -> -8 | L23: 2.04 | M23: 53 | N23: 30 | O23: 0 | P23: 0
A24: 0.38 | B24: 53 | C24: 0 | D24: -1 | E24: -1 | I24: =H25-H23 -> -8 | L24: 2.06 | M24: 53 | N24: 31 | O24: 0 | P24: 0
A25: 0.4 | B25: 53 | C25: 0 | D25: 0 | E25: 1 | G25: 2.07 | H25: 45 | J25: =I26-I24 -> 1 | L25: 2.07 | M25: 45 | N25: 31 | O25: -8 | P25: -8
A26: 0.42 | B26: 54 | C26: 0 | D26: 1 | E26: 1 | I26: =H27-H25 -> -7 | L26: 2.09 | M26: 38 | N26: 32 | O26: -7 | P26: 1
A27: 0.44 | B27: 54 | C27: 0 | D27: 0 | E27: -1 | G27: 2.09 | H27: 38 | L27: 2.11 | M27: 45 | N27: 33 | O27: 7 | P27: 14
A28: 0.45 | B28: 53 | C28: 0 | D28: -1 | E28: -1 | H28: t = | I28: =G23+(G23-G21)*ABS(J23)/(ABS(J23)+ABS(J25)) -> 2.077777778 | J28: s | L28: 2.13 | M28: 52 | N28: 34 | O28: 7 | P28: 0
A29: 0.47 | B29: 53 | C29: 0 | D29: 0 | E29: 1
A30: 0.49 | B30: 54 | C30: 0 | D30: 1 | E30: 1 | G30: tijd | H30: waarde | I30: 1st der | J30: 2nd der | L30: 2.62 | M30: 52 | N30: 59 | O30: =M30-M29 -> 52 | P30: =O30-O29 -> 52
A31: 0.51 | B31: 54 | C31: 0 | D31: 0 | E31: -1 | G31: 2.64 | H31: 53 | L31: 2.64 | M31: 53 | N31: 59 | O31: 1 | P31: -51
A32: 0.52 | B32: 54 | C32: 0 | D32: 0 | E32: 0 | I32: =H33-H31 -> -1 | L32: 2.66 | M32: 52 | N32: 60 | O32: -1 | P32: -2
A33: 0.54 | B33: 54 | C33: 0 | D33: 0 | E33: 0 | G33: 2.66 | H33: 52 | J33: =I34-I32 -> -14 | L33: 2.68 | M33: 37 | N33: 62 | O33: -15 | P33: -14
A34: 0.56 | B34: 54 | C34: 0 | D34: 0 | E34: 0 | I34: =H35-H33 -> -15 | L34: 2.7 | M34: 48 | N34: 63 | O34: 11 | P34: 26
A35: 0.58 | B35: 54 | C35: 0 | D35: 0 | E35: 0 | G35: 2.68 | H35: 37 | J35: =I36-I34 -> 26 | L35: 2.72 | M35: 53 | N35: 64 | O35: 5 | P35: -6
A36: 0.59 | B36: 54 | C36: 0 | D36: 0 | E36: 0 | I36: =H37-H35 -> 11 | L36: 2.73 | M36: 51 | N36: 65 | O36: -2 | P36: -7
A37: 0.62 | B37: 53 | C37: 0 | D37: -1 | E37: -1 | G37: 2.7 | H37: 48 | L37: 2.75 | M37: 53 | N37: 66 | O37: 2 | P37: 4
A38: 0.63 | B38: 52 | C38: 1 | D38: -1 | E38: 0 | H38: t = | I38: =G33+(G33-G31)*ABS(J33)/(ABS(J33)+ABS(J35)) -> 2.667 | J38: s | N38: 0 | O38: -1
A39: 0.65 | B39: 53 | C39: 1 | D39: 1 | E39: 2
A40: 0.67 | B40: 53 | C40: 1 | D40: 0 | E40: -1 | G40: tijd | H40: waarde | I40: 1st der | J40: 2nd der | L40: 3.11 | M40: 52 | N40: 89 | O40: -1 | P40: -2
A41: 0.68 | B41: 52 | C41: 1 | D41: -1 | E41: -1 | G41: 3.11 | H41: 52 | L41: 3.12 | M41: 51 | N41: 90 | O41: -1 | P41: 0
A42: 0.7 | B42: 52 | C42: 1 | D42: 0 | E42: 1 | I42: =H43-H41 -> -1 | L42: 3.14 | M42: 38 | N42: 91 | O42: -13 | P42: -12
A43: 0.72 | B43: 52 | C43: 1 | D43: 0 | E43: 0 | G43: 3.12 | H43: 51 | J43: =I44-I42 -> -12 | L43: 3.16 | M43: 38 | N43: 92 | O43: 0 | P43: 13
A44: 0.74 | B44: 52 | C44: 1 | D44: 0 | E44: 0 | I44: =H45-H43 -> -13 | L44: 3.17 | M44: 51 | N44: 94 | O44: 13 | P44: 13
A45: 0.76 | B45: 50 | C45: 1 | D45: -2 | E45: -2 | G45: 3.14 | H45: 38 | J45: =I46-I44 -> 13 | L45: 3.19 | M45: 52 | N45: 95 | O45: 1 | P45: -12
A46: 0.77 | B46: 48 | C46: 1 | D46: -2 | E46: 0 | I46: =H47-H45 -> 0 | L46: 3.21 | M46: 52 | N46: 96 | O46: 0 | P46: -1
A47: 0.79 | B47: 45 | C47: 1 | D47: -3 | E47: -1 | G47: 3.16 | H47: 38
A48: 0.81 | B48: 42 | C48: 1 | D48: -3 | E48: 0 | H48: t = | I48: =G43+(G43-G41)*ABS(J43)/(ABS(J43)+ABS(J45)) -> 3.1248 | J48: s
A49: 0.83 | B49: 39 | C49: 2 | D49: -3 | E49: 0
A50: 0.84 | B50: 38 | C50: 2 | D50: -1 | E50: 2 | G50: tijd | H50: waarde | I50: 1st der | J50: 2nd der | L50: 3.48 | M50: 52 | N50: 116 | O50: 0 | P50: -1
A51: 0.86 | B51: 38 | C51: 2 | D51: 0 | E51: 1 | G51: 3.5 | H51: 51 | L51: 3.5 | M51: 51 | N51: 118 | O51: -1 | P51: -1
A52: 0.88 | B52: 38 | C52: 2 | D52: 0 | E52: 0 | I52: =H53-H51 -> 1 | L52: 3.52 | M52: 52 | N52: 119 | O52: 1 | P52: 2
A53: 0.9 | B53: 38 | C53: 2 | D53: 0 | E53: 0 | G53: 3.52 | H53: 52 | J53: =I54-I52 -> -5 | L53: 3.53 | M53: 48 | N53: 120 | O53: -4 | P53: -5
A54: 0.92 | B54: 39 | C54: 2 | D54: 1 | E54: 1 | I54: =H55-H53 -> -4 | L54: 3.55 | M54: 36 | N54: 122 | O54: -12 | P54: -8
A55: 0.93 | B55: 38 | C55: 2 | D55: -1 | E55: -2 | G55: 3.53 | H55: 48 | J55: =I56-I54 -> -8 | L55: 3.57 | M55: 51 | N55: 123 | O55: 15 | P55: 27
A56: 0.95 | B56: 40 | C56: 3 | D56: 2 | E56: 3 | I56: =H57-H55 -> -12 | L56: 3.59 | M56: 51 | N56: 125 | O56: 0 | P56: -15
A57: 0.97 | B57: 43 | C57: 3 | D57: 3 | E57: 1 | G57: 3.55 | H57: 36 | L57: 3.6 | M57: 39 | N57: 126 | O57: -12 | P57: -12
A58: 0.99 | B58: 50 | C58: 3 | D58: 7 | E58: 4 | H58: t = | I58: =G53+(G53-G51)*ABS(J53)/(ABS(J53)+ABS(J55)) -> 3.527692308 | J58: s | L58: 3.62 | M58: 40 | N58: 127 | O58: 1 | P58: 13
A59: 1.01 | B59: 53 | C59: 3 | D59: 3 | E59: -4 | L59: 3.64 | M59: 40 | N59: 129 | O59: 0 | P59: -1
A60: 1.02 | B60: 54 | C60: 3 | D60: 1 | E60: -2
A61: 1.04 | B61: 54 | C61: 3 | D61: 0 | E61: -1
A62: 1.06 | B62: 54 | C62: 4 | D62: 0 | E62: 0
A63: 1.08 | B63: 54 | C63: 4 | D63: 0 | E63: 0
A64: 1.09 | B64: 54 | C64: 4 | D64: 0 | E64: 0
A65: 1.11 | B65: 54 | C65: 4 | D65: 0 | E65: 0
A66: 1.13 | B66: 53 | C66: 5 | D66: -1 | E66: -1
A67: 1.15 | B67: 53 | C67: 5 | D67: 0 | E67: 1
A68: 1.17 | B68: 53 | C68: 5 | D68: 0 | E68: 0
A69: 1.18 | B69: 53 | C69: 6 | D69: =B69-B68 -> 0 | E69: 0
A70: 1.2 | B70: 53 | C70: 6 | D70: 0 | E70: =D70-D69 -> 0
A71: 1.22 | B71: 54 | C71: 6 | D71: 1 | E71: 1
A72: 1.24 | B72: 54 | C72: 7 | D72: 0 | E72: -1
A73: 1.25 | B73: 54 | C73: 7 | D73: 0 | E73: 0
A74: 1.27 | B74: 54 | C74: 7 | D74: 0 | E74: 0
A75: 1.29 | B75: 54 | C75: 7 | D75: 0 | E75: 0
A76: 1.31 | B76: 54 | C76: 8 | D76: 0 | E76: 0
A77: 1.33 | B77: 54 | C77: 8 | D77: 0 | E77: 0
A78: 1.34 | B78: 54 | C78: 8 | D78: 0 | E78: 0
A79: 1.36 | B79: 53 | C79: 9 | D79: -1 | E79: -1
A80: 1.38 | B80: 53 | C80: 9 | D80: 0 | E80: 1
A81: 1.4 | B81: 54 | C81: 10 | D81: 1 | E81: 1
A82: 1.42 | B82: 54 | C82: 10 | D82: 0 | E82: -1
A83: 1.43 | B83: 54 | C83: 11 | D83: 0 | E83: 0
A84: 1.45 | B84: 54 | C84: 11 | D84: 0 | E84: 0
A85: 1.47 | B85: 54 | C85: 11 | D85: 0 | E85: 0
A86: 1.49 | B86: 54 | C86: 12 | D86: 0 | E86: 0
A87: 1.5 | B87: 53 | C87: 12 | D87: -1 | E87: -1
A88: 1.52 | B88: 53 | C88: 13 | D88: 0 | E88: 1
A89: 1.54 | B89: 53 | C89: 13 | D89: 0 | E89: 0
A90: 1.56 | B90: 54 | C90: 14 | D90: 1 | E90: 1
A91: 1.57 | B91: 53 | C91: 14 | D91: -1 | E91: -2
A92: 1.59 | B92: 54 | C92: 15 | D92: 1 | E92: 2
A93: 1.61 | B93: 54 | C93: 15 | D93: 0 | E93: -1
A94: 1.63 | B94: 54 | C94: 15 | D94: 0 | E94: 0
A95: 1.65 | B95: 54 | C95: 16 | D95: 0 | E95: 0
A96: 1.67 | B96: 53 | C96: 17 | D96: -1 | E96: -1
A97: 1.68 | B97: 53 | C97: 17 | D97: 0 | E97: 1
A98: 1.7 | B98: 53 | C98: 18 | D98: 0 | E98: 0
A99: 1.72 | B99: 53 | C99: 18 | D99: 0 | E99: 0
A100: 1.74 | B100: 54 | C100: 19 | D100: 1 | E100: 1
A101: 1.75 | B101: 54 | C101: 19 | D101: 0 | E101: -1
A102: 1.77 | B102: 54 | C102: 20 | D102: 0 | E102: 0
A103: 1.79 | B103: 54 | C103: 21 | D103: 0 | E103: 0
A104: 1.81 | B104: 53 | C104: 21 | D104: -1 | E104: -1
A105: 1.82 | B105: 53 | C105: 22 | D105: 0 | E105: 1
A106: 1.84 | B106: 53 | C106: 23 | D106: 0 | E106: 0
A107: 1.86 | B107: 54 | C107: 23 | D107: 1 | E107: 1
A108: 1.88 | B108: 54 | C108: 23 | D108: 0 | E108: -1
A109: 1.89 | B109: 54 | C109: 24 | D109: 0 | E109: 0
A110: 1.91 | B110: 53 | C110: 25 | D110: -1 | E110: -1
A111: 1.93 | B111: 53 | C111: 26 | D111: 0 | E111: 1
A112: 1.95 | B112: 53 | C112: 27 | D112: 0 | E112: 0
A113: 1.97 | B113: 54 | C113: 27 | D113: 1 | E113: 1
A114: 1.98 | B114: 53 | C114: 27 | D114: -1 | E114: -2
A115: 2 | B115: 53 | C115: 28 | D115: 0 | E115: 1
A116: 2.02 | B116: 53 | C116: 29 | D116: 0 | E116: 0
A117: 2.04 | B117: 53 | C117: 30 | D117: 0 | E117: 0
A118: 2.06 | B118: 53 | C118: 31 | D118: 0 | E118: 0
A119: 2.07 | B119: 45 | C119: 31 | D119: -8 | E119: -8
A120: 2.09 | B120: 38 | C120: 32 | D120: -7 | E120: 1
A121: 2.11 | B121: 45 | C121: 33 | D121: 7 | E121: 14
A122: 2.13 | B122: 52 | C122: 34 | D122: 7 | E122: 0
A123: 2.14 | B123: 53 | C123: 34 | D123: 1 | E123: -6
A124: 2.16 | B124: 53 | C124: 35 | D124: 0 | E124: -1
A125: 2.18 | B125: 53 | C125: 36 | D125: 0 | E125: 0
A126: 2.2 | B126: 53 | C126: 37 | D126: 0 | E126: 0
A127: 2.22 | B127: 53 | C127: 38 | D127: 0 | E127: 0
A128: 2.23 | B128: 52 | C128: 38 | D128: -1 | E128: -1
A129: 2.25 | B129: 53 | C129: 39 | D129: 1 | E129: 2
A130: 2.27 | B130: 54 | C130: 40 | D130: 1 | E130: 0
A131: 2.29 | B131: 53 | C131: 41 | D131: -1 | E131: -2
A132: 2.3 | B132: 53 | C132: 42 | D132: 0 | E132: 1
A133: 2.32 | B133: 53 | C133: 43 | D133: =B133-B132 -> 0 | E133: 0
A134: 2.34 | B134: 53 | C134: 43 | D134: 0 | E134: =D134-D133 -> 0
A135: 2.36 | B135: 53 | C135: 44 | D135: 0 | E135: 0
A136: 2.37 | B136: 52 | C136: 45 | D136: -1 | E136: -1
A137: 2.39 | B137: 52 | C137: 46 | D137: 0 | E137: 1
A138: 2.41 | B138: 53 | C138: 47 | D138: 1 | E138: 1
A139: 2.43 | B139: 53 | C139: 48 | D139: 0 | E139: -1
A140: 2.45 | B140: 52 | C140: 49 | D140: -1 | E140: -1
A141: 2.47 | B141: 53 | C141: 50 | D141: 1 | E141: 2
A142: 2.48 | B142: 53 | C142: 51 | D142: 0 | E142: -1
A143: 2.5 | B143: 53 | C143: 52 | D143: 0 | E143: 0
A144: 2.52 | B144: 53 | C144: 52 | D144: 0 | E144: 0
A145: 2.54 | B145: 52 | C145: 54 | D145: -1 | E145: -1
A146: 2.55 | B146: 52 | C146: 55 | D146: 0 | E146: 1
A147: 2.57 | B147: 53 | C147: 55 | D147: 1 | E147: 1
A148: 2.59 | B148: 53 | C148: 56 | D148: 0 | E148: -1
A149: 2.61 | B149: 52 | C149: 58 | D149: -1 | E149: -1
A150: 2.62 | B150: 52 | C150: 59 | D150: 0 | E150: 1
A151: 2.64 | B151: 53 | C151: 59 | D151: 1 | E151: 1
A152: 2.66 | B152: 52 | C152: 60 | D152: -1 | E152: -2
A153: 2.68 | B153: 37 | C153: 62 | D153: -15 | E153: -14
A154: 2.7 | B154: 48 | C154: 63 | D154: 11 | E154: 26
A155: 2.72 | B155: 53 | C155: 64 | D155: 5 | E155: -6
A156: 2.73 | B156: 51 | C156: 65 | D156: -2 | E156: -7
A157: 2.75 | B157: 53 | C157: 66 | D157: 2 | E157: 4
A158: 2.77 | B158: 53 | C158: 67 | D158: 0 | E158: -2
A159: 2.78 | B159: 52 | C159: 68 | D159: -1 | E159: -1
A160: 2.8 | B160: 51 | C160: 69 | D160: -1 | E160: 0
A161: 2.82 | B161: 52 | C161: 70 | D161: 1 | E161: 2
A162: 2.84 | B162: 53 | C162: 71 | D162: 1 | E162: 0
A163: 2.86 | B163: 53 | C163: 72 | D163: 0 | E163: -1
A164: 2.87 | B164: 51 | C164: 73 | D164: -2 | E164: -2
A165: 2.89 | B165: 52 | C165: 75 | D165: 1 | E165: 3
A166: 2.91 | B166: 53 | C166: 75 | D166: 1 | E166: 0
A167: 2.93 | B167: 52 | C167: 77 | D167: -1 | E167: -2
A168: 2.95 | B168: 52 | C168: 78 | D168: 0 | E168: 1
A169: 2.96 | B169: 52 | C169: 79 | D169: =B169-B168 -> 0 | E169: =D169-D168 -> 0
A170: 2.98 | B170: 52 | C170: 80 | D170: 0 | E170: 0
A171: 3 | B171: 51 | C171: 82 | D171: -1 | E171: -1
A172: 3.02 | B172: 52 | C172: 83 | D172: 1 | E172: 2
A173: 3.03 | B173: 52 | C173: 84 | D173: 0 | E173: -1
A174: 3.05 | B174: 51 | C174: 85 | D174: -1 | E174: -1
A175: 3.07 | B175: 52 | C175: 86 | D175: 1 | E175: 2
A176: 3.09 | B176: 53 | C176: 87 | D176: 1 | E176: 0
A177: 3.11 | B177: 52 | C177: 89 | D177: -1 | E177: -2
A178: 3.12 | B178: 51 | C178: 90 | D178: -1 | E178: 0
A179: 3.14 | B179: 38 | C179: 91 | D179: -13 | E179: -12
A180: 3.16 | B180: 38 | C180: 92 | D180: 0 | E180: 13
A181: 3.17 | B181: 51 | C181: 94 | D181: 13 | E181: 13
A182: 3.19 | B182: 52 | C182: 95 | D182: 1 | E182: -12
A183: 3.21 | B183: 52 | C183: 96 | D183: 0 | E183: -1
A184: 3.23 | B184: 51 | C184: 98 | D184: -1 | E184: -1
A185: 3.25 | B185: 52 | C185: 99 | D185: 1 | E185: 2
A186: 3.27 | B186: 52 | C186: 100 | D186: 0 | E186: -1
A187: 3.28 | B187: 51 | C187: 101 | D187: -1 | E187: -1
A188: 3.3 | B188: 51 | C188: 103 | D188: 0 | E188: 1
A189: 3.32 | B189: 52 | C189: 104 | D189: 1 | E189: 1
A190: 3.34 | B190: 51 | C190: 105 | D190: -1 | E190: -2
A191: 3.35 | B191: 52 | C191: 107 | D191: 1 | E191: 2
A192: 3.37 | B192: 51 | C192: 108 | D192: -1 | E192: -2
A193: 3.39 | B193: 51 | C193: 109 | D193: 0 | E193: 1
A194: 3.41 | B194: 52 | C194: 111 | D194: 1 | E194: 1
A195: 3.42 | B195: 52 | C195: 112 | D195: 0 | E195: -1
A196: 3.44 | B196: 51 | C196: 113 | D196: -1 | E196: -1
A197: 3.46 | B197: 52 | C197: 115 | D197: 1 | E197: 2
A198: 3.48 | B198: 52 | C198: 116 | D198: 0 | E198: -1
A199: 3.5 | B199: 51 | C199: 118 | D199: -1 | E199: -1
A200: 3.52 | B200: 52 | C200: 119 | D200: 1 | E200: 2
... 136 more rows

Sheet 150320092221data
A1: 10 ms | B1: s | C1: RAW | H1: tijdstip | I1: genormaliseerd | J1: afstand | K1: snelheid | L1: versnelling | N1: rotatiesensorwaarde | Q1: afstand
A2: Tijd | C2: Licht | D2: Rotatie | E2: 1ste der | F2: 2de der | H2: s | I2: s | J2: cm | K2: m/s | L2: m/s2 | N2: ruw | O2: gecorr. | P2: wielrot | Q2: cm
A3: 3 | B3: =A3/1000*10 -> 0.03 | C3: 54 | D3: 0 | H3: =J18 -> 0.476 | I3: =H3-$H$3 -> 0 | J3: 0 | K3: 0 | L3: 0 | N3: =VLOOKUP(H3,$B$3:$D$362,3) -> 3 | O3: =N3-$N$3 -> 0 | P3: =O3/16 -> 0 | Q3: =P3*$P$8 -> 0
A4: 4 | B4: =A4/1000*10 -> 0.04 | C4: 54 | D4: 0 | E4: =C4-C3 -> 0 | H4: =J28 -> 1.485185185 | I4: =H4-$H$3 -> 1.009185185 | J4: 25 | K4: =J4/(H4-H3)/100 -> 0.2477246036 | L4: =(K4-L3)/I4 -> 0.245469917 | N4: =VLOOKUP(H4,$B$3:$D$362,3) -> 32 | O4: =N4-$N$3 -> 29 | P4: =O4/16 -> 1.8125 | Q4: =P4*$P$8 -> 24.48478774
A5: 6 | B5: 0.06 | C5: 54 | D5: 0 | E5: =C5-C4 -> 0 | F5: =E5-E4 -> 0 | H5: =J38 -> 2.027027027 | I5: =H5-$H$3 -> 1.551027027 | J5: 50 | K5: =J5/(H5-H4)/100 -> 0.9227784962 | L5: =(K5-L4)/I5 -> 0.436683931 | N5: 60 | O5: 57 | P5: 3.5625 | Q5: 48.12527246
A6: 8 | B6: 0.08 | C6: 54 | D6: 0 | E6: 0 | F6: =E6-E5 -> 0 | H6: =J48 -> 2.464375 | I6: =H6-$H$3 -> 1.988375 | J6: 75 | K6: =J6/(H6-H5)/100 -> 1.714881619 | L6: =(K6-L5)/I6 -> 0.6428353244 | N6: 89 | O6: 86 | P6: 5.375 | Q6: 72.61006021
A7: 10 | B7: 0.1 | C7: 55 | D7: 0 | E7: 1 | F7: 1 | H7: =J58 -> 2.866153846 | I7: =H7-$H$3 -> 2.390153846 | J7: 100 | K7: =J7/(H7-H6)/100 -> 2.488931435 | L7: =(K7-L6)/I7 -> 0.7723754324 | N7: 118 | O7: 115 | P7: 7.1875 | Q7: 97.09484795
A8: 12 | B8: 0.12 | C8: 55 | D8: 0 | E8: 0 | F8: -1 | N8: Diameter = | P8: =2*PI()*4.3/2 -> 13.50884841
A9: 13 | B9: 0.13 | C9: 54 | D9: 0 | E9: -1 | F9: -1 | H9: tijd | I9: waarde | J9: 1st der | K9: 2nd der
A10: 15 | B10: 0.15 | C10: 54 | D10: 0 | E10: 0 | F10: 1 | H10: 0.45 | I10: 39
A11: 17 | B11: 0.17 | C11: 54 | D11: 0 | E11: 0 | F11: 0 | J11: =I12-I10 -> 5
A12: 19 | B12: 0.19 | C12: 54 | D12: 0 | E12: 0 | F12: 0 | H12: 0.47 | I12: 44 | K12: =J13-J11 -> 3
A13: 20 | B13: 0.2 | C13: 54 | D13: 0 | E13: 0 | F13: 0 | J13: =I14-I12 -> 8
A14: 22 | B14: 0.22 | C14: 54 | D14: 0 | E14: 0 | F14: 0 | H14: 0.49 | I14: 52 | K14: =J15-J13 -> -7
A15: 24 | B15: 0.24 | C15: 54 | D15: 0 | E15: 0 | F15: 0 | J15: =I16-I14 -> 1
A16: 26 | B16: 0.26 | C16: 54 | D16: 0 | E16: 0 | F16: 0 | H16: 0.51 | I16: 53
A17: 28 | B17: 0.28 | C17: 54 | D17: 0 | E17: 0 | F17: 0 | H17: t = 0.047 + 0.02 * (3/(3+7)) =
A18: 29 | B18: 0.29 | C18: 54 | D18: 0 | E18: 0 | F18: 0 | J18: =H12+(H12-H10)*ABS(K12)/(ABS(K12)+ABS(K14)) -> 0.476 | K18: s
A19: 31 | B19: 0.31 | C19: 53 | D19: 1 | E19: -1 | F19: -1
A20: 33 | B20: 0.33 | C20: 52 | D20: 1 | E20: -1 | F20: 0 | H20: tijd | I20: waarde | J20: 1st der | K20: 2nd der
A21: 35 | B21: 0.35 | C21: 48 | D21: 1 | E21: -4 | F21: -3 | H21: 1.47 | I21: 41
A22: 36 | B22: 0.36 | C22: 42 | D22: 1 | E22: -6 | F22: -2 | J22: =I23-I21 -> -1
A23: 38 | B23: 0.38 | C23: 39 | D23: 1 | E23: -3 | F23: 3 | H23: 1.48 | I23: 40 | K23: =J24-J22 -> 14
A24: 40 | B24: 0.4 | C24: 39 | D24: 2 | E24: 0 | F24: 3 | J24: =I25-I23 -> 13
A25: 42 | B25: 0.42 | C25: 39 | D25: 2 | E25: 0 | F25: 0 | H25: 1.5 | I25: 53 | K25: =J26-J24 -> -13 | M25: 1.47 | N25: 41 | O25: -11 | P25: -9
A26: 43 | B26: 0.43 | C26: 39 | D26: 2 | E26: 0 | F26: 0 | J26: =I27-I25 -> 0 | M26: 1.48 | N26: 40 | O26: -1 | P26: 10
A27: 45 | B27: 0.45 | C27: 39 | D27: 2 | E27: 0 | F27: 0 | H27: 1.52 | I27: 53 | M27: 1.5 | N27: 53 | O27: 13 | P27: 14
A28: 47 | B28: 0.47 | C28: 44 | D28: 3 | E28: 5 | F28: 5 | I28: t = | J28: =H23+(H23-H21)*ABS(K23)/(ABS(K23)+ABS(K25)) -> 1.485185185 | K28: s | M28: 1.52 | N28: 53 | O28: 0 | P28: -13
A29: 49 | B29: 0.49 | C29: 52 | D29: 3 | E29: 8 | F29: 3 | M29: 1.54 | N29: 52 | O29: -1 | P29: -1
A30: 51 | B30: 0.51 | C30: 53 | D30: 3 | E30: 1 | F30: -7 | H30: tijd | I30: waarde | J30: 1st der | K30: 2nd der | M30: 1.56 | N30: 54 | O30: 2 | P30: 3
A31: 53 | B31: 0.53 | C31: 54 | D31: 4 | E31: 1 | F31: 0 | H31: 2 | I31: 52
A32: 54 | B32: 0.54 | C32: 54 | D32: 4 | E32: 0 | F32: -1 | J32: =I33-I31 -> 0 | M32: 2 | N32: 52 | O32: -1 | P32: 0
A33: 56 | B33: 0.56 | C33: 54 | D33: 4 | E33: 0 | F33: 0 | H33: 2.02 | I33: 52 | K33: =J34-J32 -> -13 | M33: 2.02 | N33: 52 | O33: 0 | P33: 1
A34: 58 | B34: 0.58 | C34: 54 | D34: 4 | E34: 0 | F34: 0 | J34: =I35-I33 -> -13 | M34: 2.04 | N34: 39 | O34: -13 | P34: -13
A35: 60 | B35: 0.6 | C35: 55 | D35: 4 | E35: 1 | F35: 1 | H35: 2.04 | I35: 39 | K35: =J36-J34 -> 24 | M35: 2.05 | N35: 50 | O35: 11 | P35: 24
A36: 61 | B36: 0.61 | C36: 55 | D36: 5 | E36: 0 | F36: -1 | J36: =I37-I35 -> 11 | M36: 2.07 | N36: 52 | O36: 2 | P36: -9
A37: 63 | B37: 0.63 | C37: 54 | D37: 5 | E37: -1 | F37: -1 | H37: 2.05 | I37: 50 | M37: 2.09 | N37: 53 | O37: 1 | P37: -1
A38: 65 | B38: 0.65 | C38: 54 | D38: 6 | E38: 0 | F38: 1 | I38: t = | J38: =H33+(H33-H31)*ABS(K33)/(ABS(K33)+ABS(K35)) -> 2.027027027 | K38: s | M38: 2.11 | N38: 53 | O38: 0 | P38: -1
A39: 67 | B39: 0.67 | C39: 54 | D39: 6 | E39: 0 | F39: 0
A40: 68 | B40: 0.68 | C40: 53 | D40: 6 | E40: -1 | F40: -1 | H40: tijd | I40: waarde | J40: 1st der | K40: 2nd der | M40: 2.45 | N40: 53 | O40: 2 | P40: 3
A41: 70 | B41: 0.7 | C41: 53 | D41: 7 | E41: 0 | F41: 1 | H41: 2.45 | I41: 53 | M41: 2.46 | N41: 52 | O41: -1 | P41: -3
A42: 72 | B42: 0.72 | C42: 54 | D42: 7 | E42: 1 | F42: 1 | J42: =I43-I41 -> -1 | M42: 2.48 | N42: 37 | O42: -15 | P42: -14
A43: 74 | B43: 0.74 | C43: 54 | D43: 7 | E43: 0 | F43: -1 | H43: 2.46 | I43: 52 | K43: =J44-J42 -> -14 | M43: 2.5 | N43: 40 | O43: 3 | P43: 18
A44: 75 | B44: 0.75 | C44: 54 | D44: 8 | E44: 0 | F44: 0 | J44: =I45-I43 -> -15 | M44: 2.52 | N44: 52 | O44: 12 | P44: 9
A45: 77 | B45: 0.77 | C45: 54 | D45: 8 | E45: 0 | F45: 0 | H45: 2.48 | I45: 37 | K45: =J46-J44 -> 18 | M45: 2.53 | N45: 51 | O45: -1 | P45: -13
A46: 79 | B46: 0.79 | C46: 54 | D46: 8 | E46: 0 | F46: 0 | J46: =I47-I45 -> 3 | M46: 2.55 | N46: 51 | O46: 0 | P46: 1
A47: 81 | B47: 0.81 | C47: 54 | D47: 9 | E47: 0 | F47: 0 | H47: 2.5 | I47: 40 | M47: 2.57 | N47: 52 | O47: 1 | P47: 1
A48: 83 | B48: 0.83 | C48: 54 | D48: 9 | E48: 0 | F48: 0 | I48: t = | J48: =H43+(H43-H41)*ABS(K43)/(ABS(K43)+ABS(K45)) -> 2.464375 | K48: s
A49: 85 | B49: 0.85 | C49: 53 | D49: 10 | E49: -1 | F49: -1
A50: 86 | B50: 0.86 | C50: 53 | D50: 10 | E50: 0 | F50: 1 | H50: tijd | I50: waarde | J50: 1st der | K50: 2nd der | M50: 2.84 | N50: 51 | O50: 0 | P50: 0
A51: 88 | B51: 0.88 | C51: 54 | D51: 11 | E51: 1 | F51: 1 | H51: 2.84 | I51: 51 | M51: 2.86 | N51: 50 | O51: -1 | P51: -1
A52: 90 | B52: 0.9 | C52: 53 | D52: 11 | E52: -1 | F52: -2 | J52: =I53-I51 -> -1 | M52: 2.87 | N52: 37 | O52: -13 | P52: -12
A53: 92 | B53: 0.92 | C53: 54 | D53: 12 | E53: 1 | F53: 2 | H53: 2.86 | I53: 50 | K53: =J54-J52 -> -12 | M53: 2.89 | N53: 51 | O53: 14 | P53: 27
A54: 93 | B54: 0.93 | C54: 54 | D54: 12 | E54: 0 | F54: -1 | J54: =I55-I53 -> -13 | M54: 2.91 | N54: 50 | O54: -1 | P54: -15
A55: 95 | B55: 0.95 | C55: 54 | D55: 12 | E55: 0 | F55: 0 | H55: 2.87 | I55: 37 | K55: =J56-J54 -> 27 | M55: 2.93 | N55: 39 | O55: -11 | P55: -10
A56: 97 | B56: 0.97 | C56: 54 | D56: 13 | E56: 0 | F56: 0 | J56: =I57-I55 -> 14
A57: 99 | B57: 0.99 | C57: 54 | D57: 13 | E57: 0 | F57: 0 | H57: 2.89 | I57: 51
A58: 100 | B58: 1 | C58: 53 | D58: 14 | E58: -1 | F58: -1 | I58: t = | J58: =H53+(H53-H51)*ABS(K53)/(ABS(K53)+ABS(K55)) -> 2.866153846 | K58: s
A59: 102 | B59: 1.02 | C59: 54 | D59: 14 | E59: 1 | F59: 2
A60: 104 | B60: 1.04 | C60: 53 | D60: 15 | E60: -1 | F60: -2
A61: 106 | B61: 1.06 | C61: 54 | D61: 16 | E61: 1 | F61: 2
A62: 108 | B62: 1.08 | C62: 55 | D62: 16 | E62: 1 | F62: 0
A63: 109 | B63: 1.09 | C63: 54 | D63: 17 | E63: -1 | F63: -2
A64: 111 | B64: 1.11 | C64: 54 | D64: 17 | E64: 0 | F64: 1
A65: 113 | B65: 1.13 | C65: 53 | D65: 18 | E65: -1 | F65: -1
A66: 115 | B66: 1.15 | C66: 53 | D66: 19 | E66: 0 | F66: 1
A67: 116 | B67: 1.16 | C67: 54 | D67: 19 | E67: 1 | F67: 1
A68: 118 | B68: =A68/1000*10 -> 1.18 | C68: 54 | D68: 20 | E68: 0 | F68: -1
A69: 120 | B69: 1.2 | C69: 54 | D69: 20 | E69: =C69-C68 -> 0 | F69: 0
A70: 122 | B70: 1.22 | C70: 54 | D70: 21 | E70: 0 | F70: =E70-E69 -> 0
A71: 124 | B71: 1.24 | C71: 53 | D71: 22 | E71: -1 | F71: -1
A72: 125 | B72: 1.25 | C72: 53 | D72: 22 | E72: 0 | F72: 1
A73: 127 | B73: 1.27 | C73: 54 | D73: 23 | E73: 1 | F73: 1
A74: 129 | B74: 1.29 | C74: 54 | D74: 24 | E74: 0 | F74: -1
A75: 131 | B75: 1.31 | C75: 54 | D75: 24 | E75: 0 | F75: 0
A76: 133 | B76: 1.33 | C76: 54 | D76: 25 | E76: 0 | F76: 0
A77: 134 | B77: 1.34 | C77: 53 | D77: 26 | E77: -1 | F77: -1
A78: 136 | B78: 1.36 | C78: 53 | D78: 27 | E78: 0 | F78: 1
A79: 138 | B79: 1.38 | C79: 53 | D79: 27 | E79: 0 | F79: 0
A80: 140 | B80: 1.4 | C80: 54 | D80: 28 | E80: 1 | F80: 1
A81: 141 | B81: 1.41 | C81: 54 | D81: 29 | E81: 0 | F81: -1
A82: 143 | B82: 1.43 | C82: 54 | D82: 29 | E82: 0 | F82: 0
A83: 145 | B83: 1.45 | C83: 52 | D83: 30 | E83: -2 | F83: -2
A84: 147 | B84: 1.47 | C84: 41 | D84: 31 | E84: -11 | F84: -9
A85: 148 | B85: 1.48 | C85: 40 | D85: 32 | E85: -1 | F85: 10
A86: 150 | B86: 1.5 | C86: 53 | D86: 32 | E86: 13 | F86: 14
A87: 152 | B87: 1.52 | C87: 53 | D87: 33 | E87: 0 | F87: -13
A88: 154 | B88: 1.54 | C88: 52 | D88: 34 | E88: -1 | F88: -1
A89: 156 | B89: 1.56 | C89: 54 | D89: 35 | E89: 2 | F89: 3
A90: 157 | B90: 1.57 | C90: 54 | D90: 36 | E90: 0 | F90: -2
A91: 159 | B91: 1.59 | C91: 54 | D91: 37 | E91: 0 | F91: 0
A92: 161 | B92: 1.61 | C92: 53 | D92: 38 | E92: -1 | F92: -1
A93: 163 | B93: 1.63 | C93: 53 | D93: 39 | E93: 0 | F93: 1
A94: 165 | B94: 1.65 | C94: 53 | D94: 40 | E94: 0 | F94: 0
A95: 166 | B95: 1.66 | C95: 54 | D95: 40 | E95: 1 | F95: 1
A96: 168 | B96: 1.68 | C96: 53 | D96: 41 | E96: -1 | F96: -2
A97: 170 | B97: 1.7 | C97: 53 | D97: 42 | E97: 0 | F97: 1
A98: 172 | B98: 1.72 | C98: 53 | D98: 43 | E98: 0 | F98: 0
A99: 173 | B99: 1.73 | C99: 54 | D99: 44 | E99: 1 | F99: 1
A100: 175 | B100: 1.75 | C100: 53 | D100: 44 | E100: -1 | F100: -2
A101: 177 | B101: 1.77 | C101: 53 | D101: 46 | E101: 0 | F101: 1
A102: 179 | B102: 1.79 | C102: 52 | D102: 47 | E102: -1 | F102: -1
A103: 181 | B103: 1.81 | C103: 53 | D103: 48 | E103: 1 | F103: 2
A104: 182 | B104: 1.82 | C104: 54 | D104: 48 | E104: 1 | F104: 0
A105: 184 | B105: 1.84 | C105: 53 | D105: 49 | E105: -1 | F105: -2
A106: 186 | B106: 1.86 | C106: 52 | D106: 50 | E106: -1 | F106: 0
A107: 188 | B107: 1.88 | C107: 53 | D107: 52 | E107: 1 | F107: 2
A108: 189 | B108: 1.89 | C108: 54 | D108: 52 | E108: 1 | F108: 0
A109: 191 | B109: 1.91 | C109: 53 | D109: 53 | E109: -1 | F109: -2
A110: 193 | B110: 1.93 | C110: 52 | D110: 55 | E110: -1 | F110: 0
A111: 195 | B111: 1.95 | C111: 53 | D111: 56 | E111: 1 | F111: 2
A112: 197 | B112: 1.97 | C112: 54 | D112: 56 | E112: 1 | F112: 0
A113: 198 | B113: 1.98 | C113: 53 | D113: 57 | E113: -1 | F113: -2
A114: 200 | B114: 2 | C114: 52 | D114: 59 | E114: -1 | F114: 0
A115: 202 | B115: 2.02 | C115: 52 | D115: 60 | E115: 0 | F115: 1
A116: 204 | B116: 2.04 | C116: 39 | D116: 61 | E116: -13 | F116: -13
A117: 205 | B117: 2.05 | C117: 50 | D117: 62 | E117: 11 | F117: 24
A118: 207 | B118: 2.07 | C118: 52 | D118: 63 | E118: 2 | F118: -9
A119: 209 | B119: 2.09 | C119: 53 | D119: 64 | E119: 1 | F119: -1
A120: 211 | B120: 2.11 | C120: 53 | D120: 65 | E120: 0 | F120: -1
A121: 213 | B121: 2.13 | C121: 52 | D121: 66 | E121: -1 | F121: -1
A122: 214 | B122: 2.14 | C122: 52 | D122: 68 | E122: 0 | F122: 1
A123: 216 | B123: 2.16 | C123: 53 | D123: 68 | E123: 1 | F123: 1
A124: 218 | B124: 2.18 | C124: 52 | D124: 70 | E124: -1 | F124: -2
A125: 220 | B125: 2.2 | C125: 52 | D125: 71 | E125: 0 | F125: 1
A126: 222 | B126: 2.22 | C126: 53 | D126: 72 | E126: 1 | F126: 1
A127: 223 | B127: 2.23 | C127: 52 | D127: 73 | E127: -1 | F127: -2
A128: 225 | B128: 2.25 | C128: 51 | D128: 74 | E128: -1 | F128: 0
A129: 227 | B129: 2.27 | C129: 52 | D129: 75 | E129: 1 | F129: 2
A130: 229 | B130: 2.29 | C130: 53 | D130: 76 | E130: 1 | F130: 0
A131: 230 | B131: 2.3 | C131: 52 | D131: 78 | E131: -1 | F131: -2
A132: 232 | B132: =A132/1000*10 -> 2.32 | C132: 52 | D132: 79 | E132: 0 | F132: 1
A133: 234 | B133: 2.34 | C133: 53 | D133: 80 | E133: =C133-C132 -> 1 | F133: 1
A134: 236 | B134: 2.36 | C134: 53 | D134: 81 | E134: 0 | F134: =E134-E133 -> -1
A135: 238 | B135: 2.38 | C135: 52 | D135: 83 | E135: -1 | F135: -1
A136: 239 | B136: 2.39 | C136: 53 | D136: 84 | E136: 1 | F136: 2
A137: 241 | B137: 2.41 | C137: 52 | D137: 85 | E137: -1 | F137: -2
A138: 243 | B138: 2.43 | C138: 51 | D138: 86 | E138: -1 | F138: 0
A139: 245 | B139: 2.45 | C139: 53 | D139: 88 | E139: 2 | F139: 3
A140: 246 | B140: 2.46 | C140: 52 | D140: 89 | E140: -1 | F140: -3
A141: 248 | B141: 2.48 | C141: 37 | D141: 90 | E141: -15 | F141: -14
A142: 250 | B142: 2.5 | C142: 40 | D142: 91 | E142: 3 | F142: 18
A143: 252 | B143: 2.52 | C143: 52 | D143: 92 | E143: 12 | F143: 9
A144: 253 | B144: 2.53 | C144: 51 | D144: 94 | E144: -1 | F144: -13
A145: 255 | B145: 2.55 | C145: 51 | D145: 95 | E145: 0 | F145: 1
A146: 257 | B146: 2.57 | C146: 52 | D146: 97 | E146: 1 | F146: 1
A147: 259 | B147: 2.59 | C147: 51 | D147: 98 | E147: -1 | F147: -2
A148: 261 | B148: 2.61 | C148: 52 | D148: 99 | E148: 1 | F148: 2
A149: 263 | B149: 2.63 | C149: 52 | D149: 100 | E149: 0 | F149: -1
A150: 264 | B150: 2.64 | C150: 51 | D150: 102 | E150: -1 | F150: -1
A151: 266 | B151: 2.66 | C151: 51 | D151: 103 | E151: 0 | F151: 1
A152: 268 | B152: 2.68 | C152: 52 | D152: 104 | E152: 1 | F152: 1
A153: 270 | B153: 2.7 | C153: 51 | D153: 106 | E153: -1 | F153: -2
A154: 271 | B154: 2.71 | C154: 52 | D154: 107 | E154: 1 | F154: 2
A155: 273 | B155: 2.73 | C155: 52 | D155: 109 | E155: 0 | F155: -1
A156: 275 | B156: 2.75 | C156: 51 | D156: 110 | E156: -1 | F156: -1
A157: 277 | B157: 2.77 | C157: 51 | D157: 111 | E157: 0 | F157: 1
A158: 278 | B158: 2.78 | C158: 52 | D158: 112 | E158: 1 | F158: 1
A159: 280 | B159: 2.8 | C159: 51 | D159: 114 | E159: -1 | F159: -2
A160: 282 | B160: 2.82 | C160: 51 | D160: 116 | E160: 0 | F160: 1
A161: 284 | B161: 2.84 | C161: 51 | D161: 117 | E161: 0 | F161: 0
A162: 286 | B162: 2.86 | C162: 50 | D162: 118 | E162: -1 | F162: -1
A163: 287 | B163: 2.87 | C163: 37 | D163: 120 | E163: -13 | F163: -12
A164: 289 | B164: 2.89 | C164: 51 | D164: 121 | E164: 14 | F164: 27
A165: 291 | B165: 2.91 | C165: 50 | D165: 123 | E165: -1 | F165: -15
A166: 293 | B166: 2.93 | C166: 39 | D166: 124 | E166: -11 | F166: -10
A167: 295 | B167: 2.95 | C167: 30 | D167: 126 | E167: -9 | F167: 2
A168: 296 | B168: 2.96 | C168: 29 | D168: 127 | E168: -1 | F168: 8
A169: 298 | B169: 2.98 | C169: 32
